{"text_format":"1","workbook":"xlsx","n_sheets":14,"sheets":["Page de garde","Identification de l'entreprise","Démarche","Cotation","Unités de travail","Référents actions","DOCUMENT UNIQUE A COMPLETER","RPS","Facteurs de pénibilité","Paramètres 1","Paramètres 2","Paramètres 3","Paramètres RPS","Paramètres COVID-19"],"not_rendered":{"charts":0,"images":9,"macros":1,"external_links":0,"defined_names":62,"comments":2,"pivot_tables":0},"unopened":[],"bounds":{"document_bytes":16777216,"sheet_cells":100000,"rows_first":2000,"rows_last":500,"rows_between":2000,"halvings":0,"cell_chars":16384,"cell_head_chars":4096},"cells_cut":0,"cells_raw":0,"read":"whole","date_system":"1900"}

{"sheet":"Page de garde","index":0,"n_rows":4,"n_cols":2,"rows_kept":4,"cut":false,"hidden":false,"merged":[]}
[]
[]
[]
[null,"L'AIST87 n'est plus responsable de l'outil dès lors qu'il a été téléchargé et utilisé par l'entreprise."]

{"sheet":"Identification de l'entreprise","index":1,"n_rows":12,"n_cols":6,"rows_kept":12,"cut":false,"hidden":false,"merged":[[8,1,8,2],[8,5,8,6],[8,3,8,4],[11,1,11,2],[11,3,11,6],[9,1,9,2],[9,3,9,4],[9,5,9,6],[10,1,10,2],[10,3,10,6],[5,1,5,6],[6,1,6,2],[6,3,6,6],[7,1,7,2],[7,3,7,6]]}
[]
[]
[]
[]
[]
[null,"L'identification de l'entreprise"]
[null,"Nom de l'entreprise"]
[null,"Adresse"]
[null,"Document unique élaboré par ",null,null,null,"Fonction : "]
[null,"Document unique validé par",null,null,null,"Fonction : "]
[null,"Date de création"]
[null,"Date de mise à jour"]

{"sheet":"Démarche","index":2,"n_rows":22,"n_cols":4,"rows_kept":22,"cut":false,"hidden":false,"merged":[[19,3,19,6],[21,1,21,2],[21,3,21,6],[16,3,16,6],[20,3,20,6],[16,1,18,2],[19,1,20,2],[6,1,6,6],[7,3,7,6],[11,3,11,6],[7,1,10,2],[14,3,14,6],[11,1,13,2],[14,1,15,2],[15,3,15,6],[12,3,12,6],[8,3,8,6],[9,3,9,6],[10,3,10,6]]}
[]
[]
[]
[]
[]
[]
[null,"La démarche"]
[null,"1. Préparer l'évaluation",null,"groupe de travail: CHSCT/reférent santé sécurité"]
[null,null,null,"unité de travail choisie : pôle d'activité"]
[null,null,null,"la méthoded'évaluation : fréquence en nombre d'occurrences x gravité du risque"]
[null,null,null,"référents des pôles d'activité: cf. unité de travail"]
[null,"2. Identifier les risques",null,"documentation INRS"]
[null,null,null,"observations des situations de travail"]
[null,null,null,"écoute des opérateurs"]
[null,"3. Classer les risques",null,"mise en avant des priorités d'action : cf. Cotation (le code couleur \"rouge\" correspond au risque à prioriser en premier lieu)"]
[null,null,null,"le classement n'est pas une mesure. De ce fait, la valeur donnée au risque est subjective. Elle est issue d'un accord entre les acteurs de l'entreprise"]
[null,"4. Proposer des actions de prévention",null,"avis des instances représentatives du personnel"]
[null,null,null,"définition d'un référent de l'action"]
[null,null,null,"définition d'un délai d'exécution"]
[null,"5. Identifier les facteurs de pénibilité (C.trav., art. R. 4121-1-1)",null,"Identification par un astérisque (*) des données collectives utiles à l'évaluation des expositions des salariés aux facteurs de pénibilité "]
[null,null,null,"identification de la proportion des salariés exposés aux facteurs de pénibilité au-delà des seuils : cf. facteurs de pénibilité"]
[null,"6. Differencier l'exposition au risque en fonction du sexe (LOI n° 2014-873 du 4 août 2014 pour l'égalité réelle entre les femmes et les hommes - art. L. 4121-3 lodifié du C.trav.)",null,"2 cotations : homme & femme"]

{"sheet":"Cotation","index":3,"n_rows":26,"n_cols":9,"rows_kept":26,"cut":false,"hidden":false,"merged":[[25,8,26,13],[19,1,19,13],[25,7,26,7],[25,1,26,1],[25,2,26,2],[25,3,26,3],[25,4,26,4],[25,5,26,5],[21,8,22,13],[23,7,24,7],[23,8,24,13],[13,7,13,13],[14,7,14,13],[15,7,15,13],[21,7,22,7],[11,1,15,2],[11,3,11,6],[11,7,11,13],[12,3,12,6],[13,3,13,6],[14,3,14,6],[15,3,15,6],[12,7,12,13],[6,1,6,13],[7,3,7,13],[8,3,8,13],[9,3,9,13],[7,1,10,2],[10,3,10,13]]}
[]
[]
[]
[]
[]
[]
[null,"La cotation de la criticité & définition des priorités d'action"]
[null,"Fréquence probable d'apparition du risque (en nombre d'occurrences)                      \"combien de fois un salarié est-il exposé?\"",null,"Niveau 1 TRES RARE                = moins d'1 fois/mois"]
[null,null,null,"Niveau 2 RARE                           = moins d'1 fois/semaine"]
[null,null,null,"Niveau 3 FREQUENT               = moins d'1 fois/jour"]
[null,null,null,"Niveau 4 TRES FREQUENT    = plus d'1 fois/jour"]
[null,"Gravité présumée",null,"Cotation des risques professionnels",null,null,null,"Cotation spécifique aux risques psychosociaux "]
[null,null,null,"Niveau 1 BENIN : accident sans arrêt de travail ",null,null,null,"Niveau 1 - Travail pas de conséquence visible sur le travail / Collectifs : possibilité de tensions entre acteurs / Individus : atteinte légères (irritation, agacement…) sans arrêt de travail "]
[null,null,null,"Niveau 2 SERIEUX : accident ou maladie avec arrêt",null,null,null,"Niveau 2 - Travail : perturbation de l'activité rattrapée dans le service/ Collectifs : tensions visibles entre acteurs / Individus : effets réversibles sur la santé, possibilité d'arrêt de travail"]
[null,null,null,"Niveau 3 GRAVE : accident ou maladie avec incapacité partielle",null,null,null,"Niveau 3 - Travail : perturbation de l'activité qui impacte plusieurs services/ Collectifs : dysfonctionnements importants, qui s'installent dans le temps / Individus : possibilités d'effets irréversibles sur la santé IPP"]
[null,null,null,"Niveau 4 TRES GRAVE : accident ou maladie avec incapacité permanente ou décès",null,null,null,"Niveau 4 - Travail : dégradation de l'activité et perte de la qualité de service, impacts l'image de la marque/ Collectifs : mode dégradé constant, régulation collective qui ne fonctionne plus / Individus : décès ou maladie professionnelle"]
[]
[]
[]
[null,"L'évaluation du risque"]
[]
[null,4,4,8,12,16,null,"FAIBLE","risque pouvant être traité à long terme : ces risques sont considérés comme faibles. Aucune mesure supplémentaire n'est necessaire  autre de celle de s'assurer que les mesures de contrôle demeurent en place. "]
[null,3,3,6,9,12]
[null,2,2,4,6,8,null,"MODERE","risque à traiter à moyen terme: les mesures de réduction des risques doivent être mises en œuvre à moyen terme. Il sera nécessaire de s'assurer que ces mesures demeurent en place."]
[null,1,1,2,3,4]
[null,null,1,2,3,4,null,"ELEVE","risque à traiter  et à surveiller en priorité: des mesures visant à réduire le risque doivent être mises en œuvre en priorité. Il sera nécessaire de s'assurer que ces mesures demaurent en place"]

{"sheet":"Unités de travail","index":4,"n_rows":13,"n_cols":5,"rows_kept":13,"cut":false,"hidden":false,"merged":[[8,1,8,4]]}
[]
[]
[]
[]
[]
[]
[]
[]
[null,"Les unités de travail"]
[]
[]
[]
[null,"Unités de travail de l'entreprise","Fonctions","Nombre de salariés ","Référents de la démarche"]

{"sheet":"Référents actions","index":5,"n_rows":11,"n_cols":4,"rows_kept":11,"cut":false,"hidden":false,"merged":[]}
[]
[]
[null,"Les référents des actions"]
[]
[null,"Ajouter la liste des salariés de votre entreprise"]
[]
[null,null,null,"Nom Prénom"]
[]
[null,null,null,"Monsieur x"]
[null,null,null,"Référent 2"]
[null,null,null,"Référent 3"]

{"sheet":"DOCUMENT UNIQUE A COMPLETER","index":6,"n_rows":403,"n_cols":15,"rows_kept":403,"cut":false,"hidden":false,"merged":[[2,11,2,14],[0,0,0,2],[2,1,2,3],[2,4,2,6],[2,10,3,10],[2,7,2,9]]}
["Unité de travail : ",null,null,"Homme(s) :",1,"Femme(s) :",2]
[]
[null,"Identification du risque",null,null,"Cotation sexe masculin",null,null,"Cotation sexe féminin",null,null,"Mesures de prévention existantes","Plan de prévention"]
["Phase de travail","Doc.","Risque","Danger","Fréquence","Gravité","Priorité","Fréquence","Gravité","Priorité",null,"Mesure de prévention à mettre en place","Référent de l'action","Délai d'exécution","Réalisée le"]
[null,{"$f":"IF(C5<>\"\",HYPERLINK((VLOOKUP(TRIM(C5),'Paramètres 3'!A:B,2,FALSE)),\"Lien\"),\"\")","v":""},null,null,null,null,null,null,null,{"$f":"H5*I5","v":0}]
[null,{"$f":"IF(C6<>\"\",HYPERLINK((VLOOKUP(TRIM(C6),'Paramètres 3'!A:B,2,FALSE)),\"Lien\"),\"\")","v":""},null,null,null,null,{"$f":"E6*F6","v":0},null,null,{"$f":"H6*I6","v":0}]
[null,{"$f":"IF(C7<>\"\",HYPERLINK((VLOOKUP(TRIM(C7),'Paramètres 3'!A:B,2,FALSE)),\"Lien\"),\"\")","v":""},null,null,null,null,{"$f":"E7*F7","v":0},null,null,{"$f":"H7*I7","v":0}]
[null,{"$f":"IF(C8<>\"\",HYPERLINK((VLOOKUP(TRIM(C8),'Paramètres 3'!A:B,2,FALSE)),\"Lien\"),\"\")","v":""}]
[null,{"$f":"IF(C9<>\"\",HYPERLINK((VLOOKUP(TRIM(C9),'Paramètres 3'!A:B,2,FALSE)),\"Lien\"),\"\")","v":""}]
[null,null,null,null,null,null,0,null,null,{"$f":"H10*I10","v":0}]
[null,{"$f":"IF(C11<>\"\",HYPERLINK((VLOOKUP(TRIM(C11),'Paramètres 3'!A:B,2,FALSE)),\"Lien\"),\"\")","v":""},null,null,null,null,0,null,null,0]
[null,{"$f":"IF(C12<>\"\",HYPERLINK((VLOOKUP(TRIM(C12),'Paramètres 3'!A:B,2,FALSE)),\"Lien\"),\"\")","v":""},null,null,null,null,0,null,null,0]
[null,{"$f":"IF(C13<>\"\",HYPERLINK((VLOOKUP(TRIM(C13),'Paramètres 3'!A:B,2,FALSE)),\"Lien\"),\"\")","v":""},null,null,null,null,0,null,null,0]
[null,{"$f":"IF(C14<>\"\",HYPERLINK((VLOOKUP(TRIM(C14),'Paramètres 3'!A:B,2,FALSE)),\"Lien\"),\"\")","v":""},null,null,null,null,0,null,null,0]
[null,{"$f":"IF(C15<>\"\",HYPERLINK((VLOOKUP(TRIM(C15),'Paramètres 3'!A:B,2,FALSE)),\"Lien\"),\"\")","v":""},null,null,null,null,0,null,null,0]
[null,{"$f":"IF(C16<>\"\",HYPERLINK((VLOOKUP(TRIM(C16),'Paramètres 3'!A:B,2,FALSE)),\"Lien\"),\"\")","v":""},null,null,null,null,0,null,null,0]
[null,{"$f":"IF(C17<>\"\",HYPERLINK((VLOOKUP(TRIM(C17),'Paramètres 3'!A:B,2,FALSE)),\"Lien\"),\"\")","v":""},null,null,null,null,0,null,null,0]
[null,{"$f":"IF(C18<>\"\",HYPERLINK((VLOOKUP(TRIM(C18),'Paramètres 3'!A:B,2,FALSE)),\"Lien\"),\"\")","v":""},null,null,null,null,0,null,null,0]
[null,{"$f":"IF(C19<>\"\",HYPERLINK((VLOOKUP(TRIM(C19),'Paramètres 3'!A:B,2,FALSE)),\"Lien\"),\"\")","v":""},null,null,null,null,0,null,null,0]
[null,{"$f":"IF(C20<>\"\",HYPERLINK((VLOOKUP(TRIM(C20),'Paramètres 3'!A:B,2,FALSE)),\"Lien\"),\"\")","v":""},null,null,null,null,0,null,null,0]
[null,{"$f":"IF(C21<>\"\",HYPERLINK((VLOOKUP(TRIM(C21),'Paramètres 3'!A:B,2,FALSE)),\"Lien\"),\"\")","v":""},null,null,null,null,0,null,null,0]
[null,{"$f":"IF(C22<>\"\",HYPERLINK((VLOOKUP(TRIM(C22),'Paramètres 3'!A:B,2,FALSE)),\"Lien\"),\"\")","v":""}]
[null,{"$f":"IF(C23<>\"\",HYPERLINK((VLOOKUP(TRIM(C23),'Paramètres 3'!A:B,2,FALSE)),\"Lien\"),\"\")","v":""}]
[null,{"$f":"IF(C24<>\"\",HYPERLINK((VLOOKUP(TRIM(C24),'Paramètres 3'!A:B,2,FALSE)),\"Lien\"),\"\")","v":""}]
[null,{"$f":"IF(C25<>\"\",HYPERLINK((VLOOKUP(TRIM(C25),'Paramètres 3'!A:B,2,FALSE)),\"Lien\"),\"\")","v":""}]
[null,{"$f":"IF(C26<>\"\",HYPERLINK((VLOOKUP(TRIM(C26),'Paramètres 3'!A:B,2,FALSE)),\"Lien\"),\"\")","v":""}]
[null,{"$f":"IF(C27<>\"\",HYPERLINK((VLOOKUP(TRIM(C27),'Paramètres 3'!A:B,2,FALSE)),\"Lien\"),\"\")","v":""}]
[null,{"$f":"IF(C28<>\"\",HYPERLINK((VLOOKUP(TRIM(C28),'Paramètres 3'!A:B,2,FALSE)),\"Lien\"),\"\")","v":""}]
[null,{"$f":"IF(C29<>\"\",HYPERLINK((VLOOKUP(TRIM(C29),'Paramètres 3'!A:B,2,FALSE)),\"Lien\"),\"\")","v":""}]
[null,{"$f":"IF(C30<>\"\",HYPERLINK((VLOOKUP(TRIM(C30),'Paramètres 3'!A:B,2,FALSE)),\"Lien\"),\"\")","v":""}]
[null,{"$f":"IF(C31<>\"\",HYPERLINK((VLOOKUP(TRIM(C31),'Paramètres 3'!A:B,2,FALSE)),\"Lien\"),\"\")","v":""}]
[null,{"$f":"IF(C32<>\"\",HYPERLINK((VLOOKUP(TRIM(C32),'Paramètres 3'!A:B,2,FALSE)),\"Lien\"),\"\")","v":""}]
[null,{"$f":"IF(C33<>\"\",HYPERLINK((VLOOKUP(TRIM(C33),'Paramètres 3'!A:B,2,FALSE)),\"Lien\"),\"\")","v":""}]
[null,{"$f":"IF(C34<>\"\",HYPERLINK((VLOOKUP(TRIM(C34),'Paramètres 3'!A:B,2,FALSE)),\"Lien\"),\"\")","v":""}]
[null,{"$f":"IF(C35<>\"\",HYPERLINK((VLOOKUP(TRIM(C35),'Paramètres 3'!A:B,2,FALSE)),\"Lien\"),\"\")","v":""}]
[null,{"$f":"IF(C36<>\"\",HYPERLINK((VLOOKUP(TRIM(C36),'Paramètres 3'!A:B,2,FALSE)),\"Lien\"),\"\")","v":""}]
[null,{"$f":"IF(C37<>\"\",HYPERLINK((VLOOKUP(TRIM(C37),'Paramètres 3'!A:B,2,FALSE)),\"Lien\"),\"\")","v":""}]
[null,{"$f":"IF(C38<>\"\",HYPERLINK((VLOOKUP(TRIM(C38),'Paramètres 3'!A:B,2,FALSE)),\"Lien\"),\"\")","v":""}]
[null,{"$f":"IF(C39<>\"\",HYPERLINK((VLOOKUP(TRIM(C39),'Paramètres 3'!A:B,2,FALSE)),\"Lien\"),\"\")","v":""}]
[null,{"$f":"IF(C40<>\"\",HYPERLINK((VLOOKUP(TRIM(C40),'Paramètres 3'!A:B,2,FALSE)),\"Lien\"),\"\")","v":""}]
[null,{"$f":"IF(C41<>\"\",HYPERLINK((VLOOKUP(TRIM(C41),'Paramètres 3'!A:B,2,FALSE)),\"Lien\"),\"\")","v":""}]
[null,{"$f":"IF(C42<>\"\",HYPERLINK((VLOOKUP(TRIM(C42),'Paramètres 3'!A:B,2,FALSE)),\"Lien\"),\"\")","v":""}]
[null,{"$f":"IF(C43<>\"\",HYPERLINK((VLOOKUP(TRIM(C43),'Paramètres 3'!A:B,2,FALSE)),\"Lien\"),\"\")","v":""}]
[null,{"$f":"IF(C44<>\"\",HYPERLINK((VLOOKUP(TRIM(C44),'Paramètres 3'!A:B,2,FALSE)),\"Lien\"),\"\")","v":""}]
[null,{"$f":"IF(C45<>\"\",HYPERLINK((VLOOKUP(TRIM(C45),'Paramètres 3'!A:B,2,FALSE)),\"Lien\"),\"\")","v":""}]
[null,{"$f":"IF(C46<>\"\",HYPERLINK((VLOOKUP(TRIM(C46),'Paramètres 3'!A:B,2,FALSE)),\"Lien\"),\"\")","v":""}]
[null,{"$f":"IF(C47<>\"\",HYPERLINK((VLOOKUP(TRIM(C47),'Paramètres 3'!A:B,2,FALSE)),\"Lien\"),\"\")","v":""}]
[null,{"$f":"IF(C48<>\"\",HYPERLINK((VLOOKUP(TRIM(C48),'Paramètres 3'!A:B,2,FALSE)),\"Lien\"),\"\")","v":""}]
[null,{"$f":"IF(C49<>\"\",HYPERLINK((VLOOKUP(TRIM(C49),'Paramètres 3'!A:B,2,FALSE)),\"Lien\"),\"\")","v":""}]
[null,{"$f":"IF(C50<>\"\",HYPERLINK((VLOOKUP(TRIM(C50),'Paramètres 3'!A:B,2,FALSE)),\"Lien\"),\"\")","v":""}]
[null,{"$f":"IF(C51<>\"\",HYPERLINK((VLOOKUP(TRIM(C51),'Paramètres 3'!A:B,2,FALSE)),\"Lien\"),\"\")","v":""}]
[null,{"$f":"IF(C52<>\"\",HYPERLINK((VLOOKUP(TRIM(C52),'Paramètres 3'!A:B,2,FALSE)),\"Lien\"),\"\")","v":""}]
[null,{"$f":"IF(C53<>\"\",HYPERLINK((VLOOKUP(TRIM(C53),'Paramètres 3'!A:B,2,FALSE)),\"Lien\"),\"\")","v":""}]
[null,{"$f":"IF(C54<>\"\",HYPERLINK((VLOOKUP(TRIM(C54),'Paramètres 3'!A:B,2,FALSE)),\"Lien\"),\"\")","v":""}]
[null,{"$f":"IF(C55<>\"\",HYPERLINK((VLOOKUP(TRIM(C55),'Paramètres 3'!A:B,2,FALSE)),\"Lien\"),\"\")","v":""}]
[null,{"$f":"IF(C56<>\"\",HYPERLINK((VLOOKUP(TRIM(C56),'Paramètres 3'!A:B,2,FALSE)),\"Lien\"),\"\")","v":""}]
[null,{"$f":"IF(C57<>\"\",HYPERLINK((VLOOKUP(TRIM(C57),'Paramètres 3'!A:B,2,FALSE)),\"Lien\"),\"\")","v":""}]
[null,{"$f":"IF(C58<>\"\",HYPERLINK((VLOOKUP(TRIM(C58),'Paramètres 3'!A:B,2,FALSE)),\"Lien\"),\"\")","v":""}]
[null,{"$f":"IF(C59<>\"\",HYPERLINK((VLOOKUP(TRIM(C59),'Paramètres 3'!A:B,2,FALSE)),\"Lien\"),\"\")","v":""}]
[null,{"$f":"IF(C60<>\"\",HYPERLINK((VLOOKUP(TRIM(C60),'Paramètres 3'!A:B,2,FALSE)),\"Lien\"),\"\")","v":""}]
[null,{"$f":"IF(C61<>\"\",HYPERLINK((VLOOKUP(TRIM(C61),'Paramètres 3'!A:B,2,FALSE)),\"Lien\"),\"\")","v":""}]
[null,{"$f":"IF(C62<>\"\",HYPERLINK((VLOOKUP(TRIM(C62),'Paramètres 3'!A:B,2,FALSE)),\"Lien\"),\"\")","v":""}]
[null,{"$f":"IF(C63<>\"\",HYPERLINK((VLOOKUP(TRIM(C63),'Paramètres 3'!A:B,2,FALSE)),\"Lien\"),\"\")","v":""}]
[null,{"$f":"IF(C64<>\"\",HYPERLINK((VLOOKUP(TRIM(C64),'Paramètres 3'!A:B,2,FALSE)),\"Lien\"),\"\")","v":""}]
[null,{"$f":"IF(C65<>\"\",HYPERLINK((VLOOKUP(TRIM(C65),'Paramètres 3'!A:B,2,FALSE)),\"Lien\"),\"\")","v":""}]
[null,{"$f":"IF(C66<>\"\",HYPERLINK((VLOOKUP(TRIM(C66),'Paramètres 3'!A:B,2,FALSE)),\"Lien\"),\"\")","v":""}]
[null,{"$f":"IF(C67<>\"\",HYPERLINK((VLOOKUP(TRIM(C67),'Paramètres 3'!A:B,2,FALSE)),\"Lien\"),\"\")","v":""}]
[null,{"$f":"IF(C68<>\"\",HYPERLINK((VLOOKUP(TRIM(C68),'Paramètres 3'!A:B,2,FALSE)),\"Lien\"),\"\")","v":""}]
[null,{"$f":"IF(C69<>\"\",HYPERLINK((VLOOKUP(TRIM(C69),'Paramètres 3'!A:B,2,FALSE)),\"Lien\"),\"\")","v":""}]
[null,{"$f":"IF(C70<>\"\",HYPERLINK((VLOOKUP(TRIM(C70),'Paramètres 3'!A:B,2,FALSE)),\"Lien\"),\"\")","v":""}]
[null,{"$f":"IF(C71<>\"\",HYPERLINK((VLOOKUP(TRIM(C71),'Paramètres 3'!A:B,2,FALSE)),\"Lien\"),\"\")","v":""}]
[null,{"$f":"IF(C72<>\"\",HYPERLINK((VLOOKUP(TRIM(C72),'Paramètres 3'!A:B,2,FALSE)),\"Lien\"),\"\")","v":""}]
[null,{"$f":"IF(C73<>\"\",HYPERLINK((VLOOKUP(TRIM(C73),'Paramètres 3'!A:B,2,FALSE)),\"Lien\"),\"\")","v":""}]
[null,{"$f":"IF(C74<>\"\",HYPERLINK((VLOOKUP(TRIM(C74),'Paramètres 3'!A:B,2,FALSE)),\"Lien\"),\"\")","v":""}]
[null,{"$f":"IF(C75<>\"\",HYPERLINK((VLOOKUP(TRIM(C75),'Paramètres 3'!A:B,2,FALSE)),\"Lien\"),\"\")","v":""}]
[null,{"$f":"IF(C76<>\"\",HYPERLINK((VLOOKUP(TRIM(C76),'Paramètres 3'!A:B,2,FALSE)),\"Lien\"),\"\")","v":""}]
[null,{"$f":"IF(C77<>\"\",HYPERLINK((VLOOKUP(TRIM(C77),'Paramètres 3'!A:B,2,FALSE)),\"Lien\"),\"\")","v":""}]
[null,{"$f":"IF(C78<>\"\",HYPERLINK((VLOOKUP(TRIM(C78),'Paramètres 3'!A:B,2,FALSE)),\"Lien\"),\"\")","v":""}]
[null,{"$f":"IF(C79<>\"\",HYPERLINK((VLOOKUP(TRIM(C79),'Paramètres 3'!A:B,2,FALSE)),\"Lien\"),\"\")","v":""}]
[null,{"$f":"IF(C80<>\"\",HYPERLINK((VLOOKUP(TRIM(C80),'Paramètres 3'!A:B,2,FALSE)),\"Lien\"),\"\")","v":""}]
[null,{"$f":"IF(C81<>\"\",HYPERLINK((VLOOKUP(TRIM(C81),'Paramètres 3'!A:B,2,FALSE)),\"Lien\"),\"\")","v":""}]
[null,{"$f":"IF(C82<>\"\",HYPERLINK((VLOOKUP(TRIM(C82),'Paramètres 3'!A:B,2,FALSE)),\"Lien\"),\"\")","v":""}]
[null,{"$f":"IF(C83<>\"\",HYPERLINK((VLOOKUP(TRIM(C83),'Paramètres 3'!A:B,2,FALSE)),\"Lien\"),\"\")","v":""}]
[null,{"$f":"IF(C84<>\"\",HYPERLINK((VLOOKUP(TRIM(C84),'Paramètres 3'!A:B,2,FALSE)),\"Lien\"),\"\")","v":""}]
[null,{"$f":"IF(C85<>\"\",HYPERLINK((VLOOKUP(TRIM(C85),'Paramètres 3'!A:B,2,FALSE)),\"Lien\"),\"\")","v":""}]
[null,{"$f":"IF(C86<>\"\",HYPERLINK((VLOOKUP(TRIM(C86),'Paramètres 3'!A:B,2,FALSE)),\"Lien\"),\"\")","v":""}]
[null,{"$f":"IF(C87<>\"\",HYPERLINK((VLOOKUP(TRIM(C87),'Paramètres 3'!A:B,2,FALSE)),\"Lien\"),\"\")","v":""}]
[null,{"$f":"IF(C88<>\"\",HYPERLINK((VLOOKUP(TRIM(C88),'Paramètres 3'!A:B,2,FALSE)),\"Lien\"),\"\")","v":""}]
[null,{"$f":"IF(C89<>\"\",HYPERLINK((VLOOKUP(TRIM(C89),'Paramètres 3'!A:B,2,FALSE)),\"Lien\"),\"\")","v":""}]
[null,{"$f":"IF(C90<>\"\",HYPERLINK((VLOOKUP(TRIM(C90),'Paramètres 3'!A:B,2,FALSE)),\"Lien\"),\"\")","v":""}]
[null,{"$f":"IF(C91<>\"\",HYPERLINK((VLOOKUP(TRIM(C91),'Paramètres 3'!A:B,2,FALSE)),\"Lien\"),\"\")","v":""}]
[null,{"$f":"IF(C92<>\"\",HYPERLINK((VLOOKUP(TRIM(C92),'Paramètres 3'!A:B,2,FALSE)),\"Lien\"),\"\")","v":""}]
[null,{"$f":"IF(C93<>\"\",HYPERLINK((VLOOKUP(TRIM(C93),'Paramètres 3'!A:B,2,FALSE)),\"Lien\"),\"\")","v":""}]
[null,{"$f":"IF(C94<>\"\",HYPERLINK((VLOOKUP(TRIM(C94),'Paramètres 3'!A:B,2,FALSE)),\"Lien\"),\"\")","v":""}]
[null,{"$f":"IF(C95<>\"\",HYPERLINK((VLOOKUP(TRIM(C95),'Paramètres 3'!A:B,2,FALSE)),\"Lien\"),\"\")","v":""}]
[null,{"$f":"IF(C96<>\"\",HYPERLINK((VLOOKUP(TRIM(C96),'Paramètres 3'!A:B,2,FALSE)),\"Lien\"),\"\")","v":""}]
[null,{"$f":"IF(C97<>\"\",HYPERLINK((VLOOKUP(TRIM(C97),'Paramètres 3'!A:B,2,FALSE)),\"Lien\"),\"\")","v":""}]
[null,{"$f":"IF(C98<>\"\",HYPERLINK((VLOOKUP(TRIM(C98),'Paramètres 3'!A:B,2,FALSE)),\"Lien\"),\"\")","v":""}]
[null,{"$f":"IF(C99<>\"\",HYPERLINK((VLOOKUP(TRIM(C99),'Paramètres 3'!A:B,2,FALSE)),\"Lien\"),\"\")","v":""}]
[null,{"$f":"IF(C100<>\"\",HYPERLINK((VLOOKUP(TRIM(C100),'Paramètres 3'!A:B,2,FALSE)),\"Lien\"),\"\")","v":""}]
[null,{"$f":"IF(C101<>\"\",HYPERLINK((VLOOKUP(TRIM(C101),'Paramètres 3'!A:B,2,FALSE)),\"Lien\"),\"\")","v":""}]
[null,{"$f":"IF(C102<>\"\",HYPERLINK((VLOOKUP(TRIM(C102),'Paramètres 3'!A:B,2,FALSE)),\"Lien\"),\"\")","v":""}]
[null,{"$f":"IF(C103<>\"\",HYPERLINK((VLOOKUP(TRIM(C103),'Paramètres 3'!A:B,2,FALSE)),\"Lien\"),\"\")","v":""}]
[null,{"$f":"IF(C104<>\"\",HYPERLINK((VLOOKUP(TRIM(C104),'Paramètres 3'!A:B,2,FALSE)),\"Lien\"),\"\")","v":""}]
[null,{"$f":"IF(C105<>\"\",HYPERLINK((VLOOKUP(TRIM(C105),'Paramètres 3'!A:B,2,FALSE)),\"Lien\"),\"\")","v":""}]
[null,{"$f":"IF(C106<>\"\",HYPERLINK((VLOOKUP(TRIM(C106),'Paramètres 3'!A:B,2,FALSE)),\"Lien\"),\"\")","v":""}]
[null,{"$f":"IF(C107<>\"\",HYPERLINK((VLOOKUP(TRIM(C107),'Paramètres 3'!A:B,2,FALSE)),\"Lien\"),\"\")","v":""}]
[null,{"$f":"IF(C108<>\"\",HYPERLINK((VLOOKUP(TRIM(C108),'Paramètres 3'!A:B,2,FALSE)),\"Lien\"),\"\")","v":""}]
[null,{"$f":"IF(C109<>\"\",HYPERLINK((VLOOKUP(TRIM(C109),'Paramètres 3'!A:B,2,FALSE)),\"Lien\"),\"\")","v":""}]
[null,{"$f":"IF(C110<>\"\",HYPERLINK((VLOOKUP(TRIM(C110),'Paramètres 3'!A:B,2,FALSE)),\"Lien\"),\"\")","v":""}]
[null,{"$f":"IF(C111<>\"\",HYPERLINK((VLOOKUP(TRIM(C111),'Paramètres 3'!A:B,2,FALSE)),\"Lien\"),\"\")","v":""}]
[null,{"$f":"IF(C112<>\"\",HYPERLINK((VLOOKUP(TRIM(C112),'Paramètres 3'!A:B,2,FALSE)),\"Lien\"),\"\")","v":""}]
[null,{"$f":"IF(C113<>\"\",HYPERLINK((VLOOKUP(TRIM(C113),'Paramètres 3'!A:B,2,FALSE)),\"Lien\"),\"\")","v":""}]
[null,{"$f":"IF(C114<>\"\",HYPERLINK((VLOOKUP(TRIM(C114),'Paramètres 3'!A:B,2,FALSE)),\"Lien\"),\"\")","v":""}]
[null,{"$f":"IF(C115<>\"\",HYPERLINK((VLOOKUP(TRIM(C115),'Paramètres 3'!A:B,2,FALSE)),\"Lien\"),\"\")","v":""}]
[null,{"$f":"IF(C116<>\"\",HYPERLINK((VLOOKUP(TRIM(C116),'Paramètres 3'!A:B,2,FALSE)),\"Lien\"),\"\")","v":""}]
[null,{"$f":"IF(C117<>\"\",HYPERLINK((VLOOKUP(TRIM(C117),'Paramètres 3'!A:B,2,FALSE)),\"Lien\"),\"\")","v":""}]
[null,{"$f":"IF(C118<>\"\",HYPERLINK((VLOOKUP(TRIM(C118),'Paramètres 3'!A:B,2,FALSE)),\"Lien\"),\"\")","v":""}]
[null,{"$f":"IF(C119<>\"\",HYPERLINK((VLOOKUP(TRIM(C119),'Paramètres 3'!A:B,2,FALSE)),\"Lien\"),\"\")","v":""}]
[null,{"$f":"IF(C120<>\"\",HYPERLINK((VLOOKUP(TRIM(C120),'Paramètres 3'!A:B,2,FALSE)),\"Lien\"),\"\")","v":""}]
[null,{"$f":"IF(C121<>\"\",HYPERLINK((VLOOKUP(TRIM(C121),'Paramètres 3'!A:B,2,FALSE)),\"Lien\"),\"\")","v":""}]
[null,{"$f":"IF(C122<>\"\",HYPERLINK((VLOOKUP(TRIM(C122),'Paramètres 3'!A:B,2,FALSE)),\"Lien\"),\"\")","v":""}]
[null,{"$f":"IF(C123<>\"\",HYPERLINK((VLOOKUP(TRIM(C123),'Paramètres 3'!A:B,2,FALSE)),\"Lien\"),\"\")","v":""}]
[null,{"$f":"IF(C124<>\"\",HYPERLINK((VLOOKUP(TRIM(C124),'Paramètres 3'!A:B,2,FALSE)),\"Lien\"),\"\")","v":""}]
[null,{"$f":"IF(C125<>\"\",HYPERLINK((VLOOKUP(TRIM(C125),'Paramètres 3'!A:B,2,FALSE)),\"Lien\"),\"\")","v":""}]
[null,{"$f":"IF(C126<>\"\",HYPERLINK((VLOOKUP(TRIM(C126),'Paramètres 3'!A:B,2,FALSE)),\"Lien\"),\"\")","v":""}]
[null,{"$f":"IF(C127<>\"\",HYPERLINK((VLOOKUP(TRIM(C127),'Paramètres 3'!A:B,2,FALSE)),\"Lien\"),\"\")","v":""}]
[null,{"$f":"IF(C128<>\"\",HYPERLINK((VLOOKUP(TRIM(C128),'Paramètres 3'!A:B,2,FALSE)),\"Lien\"),\"\")","v":""}]
[null,{"$f":"IF(C129<>\"\",HYPERLINK((VLOOKUP(TRIM(C129),'Paramètres 3'!A:B,2,FALSE)),\"Lien\"),\"\")","v":""}]
[null,{"$f":"IF(C130<>\"\",HYPERLINK((VLOOKUP(TRIM(C130),'Paramètres 3'!A:B,2,FALSE)),\"Lien\"),\"\")","v":""}]
[null,{"$f":"IF(C131<>\"\",HYPERLINK((VLOOKUP(TRIM(C131),'Paramètres 3'!A:B,2,FALSE)),\"Lien\"),\"\")","v":""}]
[null,{"$f":"IF(C132<>\"\",HYPERLINK((VLOOKUP(TRIM(C132),'Paramètres 3'!A:B,2,FALSE)),\"Lien\"),\"\")","v":""}]
[null,{"$f":"IF(C133<>\"\",HYPERLINK((VLOOKUP(TRIM(C133),'Paramètres 3'!A:B,2,FALSE)),\"Lien\"),\"\")","v":""}]
[null,{"$f":"IF(C134<>\"\",HYPERLINK((VLOOKUP(TRIM(C134),'Paramètres 3'!A:B,2,FALSE)),\"Lien\"),\"\")","v":""}]
[null,{"$f":"IF(C135<>\"\",HYPERLINK((VLOOKUP(TRIM(C135),'Paramètres 3'!A:B,2,FALSE)),\"Lien\"),\"\")","v":""}]
[null,{"$f":"IF(C136<>\"\",HYPERLINK((VLOOKUP(TRIM(C136),'Paramètres 3'!A:B,2,FALSE)),\"Lien\"),\"\")","v":""}]
[null,{"$f":"IF(C137<>\"\",HYPERLINK((VLOOKUP(TRIM(C137),'Paramètres 3'!A:B,2,FALSE)),\"Lien\"),\"\")","v":""}]
[null,{"$f":"IF(C138<>\"\",HYPERLINK((VLOOKUP(TRIM(C138),'Paramètres 3'!A:B,2,FALSE)),\"Lien\"),\"\")","v":""}]
[null,{"$f":"IF(C139<>\"\",HYPERLINK((VLOOKUP(TRIM(C139),'Paramètres 3'!A:B,2,FALSE)),\"Lien\"),\"\")","v":""}]
[null,{"$f":"IF(C140<>\"\",HYPERLINK((VLOOKUP(TRIM(C140),'Paramètres 3'!A:B,2,FALSE)),\"Lien\"),\"\")","v":""}]
[null,{"$f":"IF(C141<>\"\",HYPERLINK((VLOOKUP(TRIM(C141),'Paramètres 3'!A:B,2,FALSE)),\"Lien\"),\"\")","v":""}]
[null,{"$f":"IF(C142<>\"\",HYPERLINK((VLOOKUP(TRIM(C142),'Paramètres 3'!A:B,2,FALSE)),\"Lien\"),\"\")","v":""}]
[null,{"$f":"IF(C143<>\"\",HYPERLINK((VLOOKUP(TRIM(C143),'Paramètres 3'!A:B,2,FALSE)),\"Lien\"),\"\")","v":""}]
[null,{"$f":"IF(C144<>\"\",HYPERLINK((VLOOKUP(TRIM(C144),'Paramètres 3'!A:B,2,FALSE)),\"Lien\"),\"\")","v":""}]
[null,{"$f":"IF(C145<>\"\",HYPERLINK((VLOOKUP(TRIM(C145),'Paramètres 3'!A:B,2,FALSE)),\"Lien\"),\"\")","v":""}]
[null,{"$f":"IF(C146<>\"\",HYPERLINK((VLOOKUP(TRIM(C146),'Paramètres 3'!A:B,2,FALSE)),\"Lien\"),\"\")","v":""}]
[null,{"$f":"IF(C147<>\"\",HYPERLINK((VLOOKUP(TRIM(C147),'Paramètres 3'!A:B,2,FALSE)),\"Lien\"),\"\")","v":""}]
[null,{"$f":"IF(C148<>\"\",HYPERLINK((VLOOKUP(TRIM(C148),'Paramètres 3'!A:B,2,FALSE)),\"Lien\"),\"\")","v":""}]
[null,{"$f":"IF(C149<>\"\",HYPERLINK((VLOOKUP(TRIM(C149),'Paramètres 3'!A:B,2,FALSE)),\"Lien\"),\"\")","v":""}]
[null,{"$f":"IF(C150<>\"\",HYPERLINK((VLOOKUP(TRIM(C150),'Paramètres 3'!A:B,2,FALSE)),\"Lien\"),\"\")","v":""}]
[null,{"$f":"IF(C151<>\"\",HYPERLINK((VLOOKUP(TRIM(C151),'Paramètres 3'!A:B,2,FALSE)),\"Lien\"),\"\")","v":""}]
[null,{"$f":"IF(C152<>\"\",HYPERLINK((VLOOKUP(TRIM(C152),'Paramètres 3'!A:B,2,FALSE)),\"Lien\"),\"\")","v":""}]
[null,{"$f":"IF(C153<>\"\",HYPERLINK((VLOOKUP(TRIM(C153),'Paramètres 3'!A:B,2,FALSE)),\"Lien\"),\"\")","v":""}]
[null,{"$f":"IF(C154<>\"\",HYPERLINK((VLOOKUP(TRIM(C154),'Paramètres 3'!A:B,2,FALSE)),\"Lien\"),\"\")","v":""}]
[null,{"$f":"IF(C155<>\"\",HYPERLINK((VLOOKUP(TRIM(C155),'Paramètres 3'!A:B,2,FALSE)),\"Lien\"),\"\")","v":""}]
[null,{"$f":"IF(C156<>\"\",HYPERLINK((VLOOKUP(TRIM(C156),'Paramètres 3'!A:B,2,FALSE)),\"Lien\"),\"\")","v":""}]
[null,{"$f":"IF(C157<>\"\",HYPERLINK((VLOOKUP(TRIM(C157),'Paramètres 3'!A:B,2,FALSE)),\"Lien\"),\"\")","v":""}]
[null,{"$f":"IF(C158<>\"\",HYPERLINK((VLOOKUP(TRIM(C158),'Paramètres 3'!A:B,2,FALSE)),\"Lien\"),\"\")","v":""}]
[null,{"$f":"IF(C159<>\"\",HYPERLINK((VLOOKUP(TRIM(C159),'Paramètres 3'!A:B,2,FALSE)),\"Lien\"),\"\")","v":""}]
[null,{"$f":"IF(C160<>\"\",HYPERLINK((VLOOKUP(TRIM(C160),'Paramètres 3'!A:B,2,FALSE)),\"Lien\"),\"\")","v":""}]
[null,{"$f":"IF(C161<>\"\",HYPERLINK((VLOOKUP(TRIM(C161),'Paramètres 3'!A:B,2,FALSE)),\"Lien\"),\"\")","v":""}]
[null,{"$f":"IF(C162<>\"\",HYPERLINK((VLOOKUP(TRIM(C162),'Paramètres 3'!A:B,2,FALSE)),\"Lien\"),\"\")","v":""}]
[null,{"$f":"IF(C163<>\"\",HYPERLINK((VLOOKUP(TRIM(C163),'Paramètres 3'!A:B,2,FALSE)),\"Lien\"),\"\")","v":""}]
[null,{"$f":"IF(C164<>\"\",HYPERLINK((VLOOKUP(TRIM(C164),'Paramètres 3'!A:B,2,FALSE)),\"Lien\"),\"\")","v":""}]
[null,{"$f":"IF(C165<>\"\",HYPERLINK((VLOOKUP(TRIM(C165),'Paramètres 3'!A:B,2,FALSE)),\"Lien\"),\"\")","v":""}]
[null,{"$f":"IF(C166<>\"\",HYPERLINK((VLOOKUP(TRIM(C166),'Paramètres 3'!A:B,2,FALSE)),\"Lien\"),\"\")","v":""}]
[null,{"$f":"IF(C167<>\"\",HYPERLINK((VLOOKUP(TRIM(C167),'Paramètres 3'!A:B,2,FALSE)),\"Lien\"),\"\")","v":""}]
[null,{"$f":"IF(C168<>\"\",HYPERLINK((VLOOKUP(TRIM(C168),'Paramètres 3'!A:B,2,FALSE)),\"Lien\"),\"\")","v":""}]
[null,{"$f":"IF(C169<>\"\",HYPERLINK((VLOOKUP(TRIM(C169),'Paramètres 3'!A:B,2,FALSE)),\"Lien\"),\"\")","v":""}]
[null,{"$f":"IF(C170<>\"\",HYPERLINK((VLOOKUP(TRIM(C170),'Paramètres 3'!A:B,2,FALSE)),\"Lien\"),\"\")","v":""}]
[null,{"$f":"IF(C171<>\"\",HYPERLINK((VLOOKUP(TRIM(C171),'Paramètres 3'!A:B,2,FALSE)),\"Lien\"),\"\")","v":""}]
[null,{"$f":"IF(C172<>\"\",HYPERLINK((VLOOKUP(TRIM(C172),'Paramètres 3'!A:B,2,FALSE)),\"Lien\"),\"\")","v":""}]
[null,{"$f":"IF(C173<>\"\",HYPERLINK((VLOOKUP(TRIM(C173),'Paramètres 3'!A:B,2,FALSE)),\"Lien\"),\"\")","v":""}]
[null,{"$f":"IF(C174<>\"\",HYPERLINK((VLOOKUP(TRIM(C174),'Paramètres 3'!A:B,2,FALSE)),\"Lien\"),\"\")","v":""}]
[null,{"$f":"IF(C175<>\"\",HYPERLINK((VLOOKUP(TRIM(C175),'Paramètres 3'!A:B,2,FALSE)),\"Lien\"),\"\")","v":""}]
[null,{"$f":"IF(C176<>\"\",HYPERLINK((VLOOKUP(TRIM(C176),'Paramètres 3'!A:B,2,FALSE)),\"Lien\"),\"\")","v":""}]
[null,{"$f":"IF(C177<>\"\",HYPERLINK((VLOOKUP(TRIM(C177),'Paramètres 3'!A:B,2,FALSE)),\"Lien\"),\"\")","v":""}]
[null,{"$f":"IF(C178<>\"\",HYPERLINK((VLOOKUP(TRIM(C178),'Paramètres 3'!A:B,2,FALSE)),\"Lien\"),\"\")","v":""}]
[null,{"$f":"IF(C179<>\"\",HYPERLINK((VLOOKUP(TRIM(C179),'Paramètres 3'!A:B,2,FALSE)),\"Lien\"),\"\")","v":""}]
[null,{"$f":"IF(C180<>\"\",HYPERLINK((VLOOKUP(TRIM(C180),'Paramètres 3'!A:B,2,FALSE)),\"Lien\"),\"\")","v":""}]
[null,{"$f":"IF(C181<>\"\",HYPERLINK((VLOOKUP(TRIM(C181),'Paramètres 3'!A:B,2,FALSE)),\"Lien\"),\"\")","v":""}]
[null,{"$f":"IF(C182<>\"\",HYPERLINK((VLOOKUP(TRIM(C182),'Paramètres 3'!A:B,2,FALSE)),\"Lien\"),\"\")","v":""}]
[null,{"$f":"IF(C183<>\"\",HYPERLINK((VLOOKUP(TRIM(C183),'Paramètres 3'!A:B,2,FALSE)),\"Lien\"),\"\")","v":""}]
[null,{"$f":"IF(C184<>\"\",HYPERLINK((VLOOKUP(TRIM(C184),'Paramètres 3'!A:B,2,FALSE)),\"Lien\"),\"\")","v":""}]
[null,{"$f":"IF(C185<>\"\",HYPERLINK((VLOOKUP(TRIM(C185),'Paramètres 3'!A:B,2,FALSE)),\"Lien\"),\"\")","v":""}]
[null,{"$f":"IF(C186<>\"\",HYPERLINK((VLOOKUP(TRIM(C186),'Paramètres 3'!A:B,2,FALSE)),\"Lien\"),\"\")","v":""}]
[null,{"$f":"IF(C187<>\"\",HYPERLINK((VLOOKUP(TRIM(C187),'Paramètres 3'!A:B,2,FALSE)),\"Lien\"),\"\")","v":""}]
[null,{"$f":"IF(C188<>\"\",HYPERLINK((VLOOKUP(TRIM(C188),'Paramètres 3'!A:B,2,FALSE)),\"Lien\"),\"\")","v":""}]
[null,{"$f":"IF(C189<>\"\",HYPERLINK((VLOOKUP(TRIM(C189),'Paramètres 3'!A:B,2,FALSE)),\"Lien\"),\"\")","v":""}]
[null,{"$f":"IF(C190<>\"\",HYPERLINK((VLOOKUP(TRIM(C190),'Paramètres 3'!A:B,2,FALSE)),\"Lien\"),\"\")","v":""}]
[null,{"$f":"IF(C191<>\"\",HYPERLINK((VLOOKUP(TRIM(C191),'Paramètres 3'!A:B,2,FALSE)),\"Lien\"),\"\")","v":""}]
[null,{"$f":"IF(C192<>\"\",HYPERLINK((VLOOKUP(TRIM(C192),'Paramètres 3'!A:B,2,FALSE)),\"Lien\"),\"\")","v":""}]
[null,{"$f":"IF(C193<>\"\",HYPERLINK((VLOOKUP(TRIM(C193),'Paramètres 3'!A:B,2,FALSE)),\"Lien\"),\"\")","v":""}]
[null,{"$f":"IF(C194<>\"\",HYPERLINK((VLOOKUP(TRIM(C194),'Paramètres 3'!A:B,2,FALSE)),\"Lien\"),\"\")","v":""}]
[null,{"$f":"IF(C195<>\"\",HYPERLINK((VLOOKUP(TRIM(C195),'Paramètres 3'!A:B,2,FALSE)),\"Lien\"),\"\")","v":""}]
[null,{"$f":"IF(C196<>\"\",HYPERLINK((VLOOKUP(TRIM(C196),'Paramètres 3'!A:B,2,FALSE)),\"Lien\"),\"\")","v":""}]
[null,{"$f":"IF(C197<>\"\",HYPERLINK((VLOOKUP(TRIM(C197),'Paramètres 3'!A:B,2,FALSE)),\"Lien\"),\"\")","v":""}]
[null,{"$f":"IF(C198<>\"\",HYPERLINK((VLOOKUP(TRIM(C198),'Paramètres 3'!A:B,2,FALSE)),\"Lien\"),\"\")","v":""}]
[null,{"$f":"IF(C199<>\"\",HYPERLINK((VLOOKUP(TRIM(C199),'Paramètres 3'!A:B,2,FALSE)),\"Lien\"),\"\")","v":""}]
[null,{"$f":"IF(C200<>\"\",HYPERLINK((VLOOKUP(TRIM(C200),'Paramètres 3'!A:B,2,FALSE)),\"Lien\"),\"\")","v":""}]
[null,{"$f":"IF(C201<>\"\",HYPERLINK((VLOOKUP(TRIM(C201),'Paramètres 3'!A:B,2,FALSE)),\"Lien\"),\"\")","v":""}]
[null,{"$f":"IF(C202<>\"\",HYPERLINK((VLOOKUP(TRIM(C202),'Paramètres 3'!A:B,2,FALSE)),\"Lien\"),\"\")","v":""}]
[null,{"$f":"IF(C203<>\"\",HYPERLINK((VLOOKUP(TRIM(C203),'Paramètres 3'!A:B,2,FALSE)),\"Lien\"),\"\")","v":""}]
[null,{"$f":"IF(C204<>\"\",HYPERLINK((VLOOKUP(TRIM(C204),'Paramètres 3'!A:B,2,FALSE)),\"Lien\"),\"\")","v":""}]
[null,{"$f":"IF(C205<>\"\",HYPERLINK((VLOOKUP(TRIM(C205),'Paramètres 3'!A:B,2,FALSE)),\"Lien\"),\"\")","v":""}]
[null,{"$f":"IF(C206<>\"\",HYPERLINK((VLOOKUP(TRIM(C206),'Paramètres 3'!A:B,2,FALSE)),\"Lien\"),\"\")","v":""}]
[null,{"$f":"IF(C207<>\"\",HYPERLINK((VLOOKUP(TRIM(C207),'Paramètres 3'!A:B,2,FALSE)),\"Lien\"),\"\")","v":""}]
[null,{"$f":"IF(C208<>\"\",HYPERLINK((VLOOKUP(TRIM(C208),'Paramètres 3'!A:B,2,FALSE)),\"Lien\"),\"\")","v":""}]
[null,{"$f":"IF(C209<>\"\",HYPERLINK((VLOOKUP(TRIM(C209),'Paramètres 3'!A:B,2,FALSE)),\"Lien\"),\"\")","v":""}]
[null,{"$f":"IF(C210<>\"\",HYPERLINK((VLOOKUP(TRIM(C210),'Paramètres 3'!A:B,2,FALSE)),\"Lien\"),\"\")","v":""}]
[null,{"$f":"IF(C211<>\"\",HYPERLINK((VLOOKUP(TRIM(C211),'Paramètres 3'!A:B,2,FALSE)),\"Lien\"),\"\")","v":""}]
[null,{"$f":"IF(C212<>\"\",HYPERLINK((VLOOKUP(TRIM(C212),'Paramètres 3'!A:B,2,FALSE)),\"Lien\"),\"\")","v":""}]
[null,{"$f":"IF(C213<>\"\",HYPERLINK((VLOOKUP(TRIM(C213),'Paramètres 3'!A:B,2,FALSE)),\"Lien\"),\"\")","v":""}]
[null,{"$f":"IF(C214<>\"\",HYPERLINK((VLOOKUP(TRIM(C214),'Paramètres 3'!A:B,2,FALSE)),\"Lien\"),\"\")","v":""}]
[null,{"$f":"IF(C215<>\"\",HYPERLINK((VLOOKUP(TRIM(C215),'Paramètres 3'!A:B,2,FALSE)),\"Lien\"),\"\")","v":""}]
[null,{"$f":"IF(C216<>\"\",HYPERLINK((VLOOKUP(TRIM(C216),'Paramètres 3'!A:B,2,FALSE)),\"Lien\"),\"\")","v":""}]
[null,{"$f":"IF(C217<>\"\",HYPERLINK((VLOOKUP(TRIM(C217),'Paramètres 3'!A:B,2,FALSE)),\"Lien\"),\"\")","v":""}]
[null,{"$f":"IF(C218<>\"\",HYPERLINK((VLOOKUP(TRIM(C218),'Paramètres 3'!A:B,2,FALSE)),\"Lien\"),\"\")","v":""}]
[null,{"$f":"IF(C219<>\"\",HYPERLINK((VLOOKUP(TRIM(C219),'Paramètres 3'!A:B,2,FALSE)),\"Lien\"),\"\")","v":""}]
[null,{"$f":"IF(C220<>\"\",HYPERLINK((VLOOKUP(TRIM(C220),'Paramètres 3'!A:B,2,FALSE)),\"Lien\"),\"\")","v":""}]
[null,{"$f":"IF(C221<>\"\",HYPERLINK((VLOOKUP(TRIM(C221),'Paramètres 3'!A:B,2,FALSE)),\"Lien\"),\"\")","v":""}]
[null,{"$f":"IF(C222<>\"\",HYPERLINK((VLOOKUP(TRIM(C222),'Paramètres 3'!A:B,2,FALSE)),\"Lien\"),\"\")","v":""}]
[null,{"$f":"IF(C223<>\"\",HYPERLINK((VLOOKUP(TRIM(C223),'Paramètres 3'!A:B,2,FALSE)),\"Lien\"),\"\")","v":""}]
[null,{"$f":"IF(C224<>\"\",HYPERLINK((VLOOKUP(TRIM(C224),'Paramètres 3'!A:B,2,FALSE)),\"Lien\"),\"\")","v":""}]
[null,{"$f":"IF(C225<>\"\",HYPERLINK((VLOOKUP(TRIM(C225),'Paramètres 3'!A:B,2,FALSE)),\"Lien\"),\"\")","v":""}]
[null,{"$f":"IF(C226<>\"\",HYPERLINK((VLOOKUP(TRIM(C226),'Paramètres 3'!A:B,2,FALSE)),\"Lien\"),\"\")","v":""}]
[null,{"$f":"IF(C227<>\"\",HYPERLINK((VLOOKUP(TRIM(C227),'Paramètres 3'!A:B,2,FALSE)),\"Lien\"),\"\")","v":""}]
[null,{"$f":"IF(C228<>\"\",HYPERLINK((VLOOKUP(TRIM(C228),'Paramètres 3'!A:B,2,FALSE)),\"Lien\"),\"\")","v":""}]
[null,{"$f":"IF(C229<>\"\",HYPERLINK((VLOOKUP(TRIM(C229),'Paramètres 3'!A:B,2,FALSE)),\"Lien\"),\"\")","v":""}]
[null,{"$f":"IF(C230<>\"\",HYPERLINK((VLOOKUP(TRIM(C230),'Paramètres 3'!A:B,2,FALSE)),\"Lien\"),\"\")","v":""}]
[null,{"$f":"IF(C231<>\"\",HYPERLINK((VLOOKUP(TRIM(C231),'Paramètres 3'!A:B,2,FALSE)),\"Lien\"),\"\")","v":""}]
[null,{"$f":"IF(C232<>\"\",HYPERLINK((VLOOKUP(TRIM(C232),'Paramètres 3'!A:B,2,FALSE)),\"Lien\"),\"\")","v":""}]
[null,{"$f":"IF(C233<>\"\",HYPERLINK((VLOOKUP(TRIM(C233),'Paramètres 3'!A:B,2,FALSE)),\"Lien\"),\"\")","v":""}]
[null,{"$f":"IF(C234<>\"\",HYPERLINK((VLOOKUP(TRIM(C234),'Paramètres 3'!A:B,2,FALSE)),\"Lien\"),\"\")","v":""}]
[null,{"$f":"IF(C235<>\"\",HYPERLINK((VLOOKUP(TRIM(C235),'Paramètres 3'!A:B,2,FALSE)),\"Lien\"),\"\")","v":""}]
[null,{"$f":"IF(C236<>\"\",HYPERLINK((VLOOKUP(TRIM(C236),'Paramètres 3'!A:B,2,FALSE)),\"Lien\"),\"\")","v":""}]
[null,{"$f":"IF(C237<>\"\",HYPERLINK((VLOOKUP(TRIM(C237),'Paramètres 3'!A:B,2,FALSE)),\"Lien\"),\"\")","v":""}]
[null,{"$f":"IF(C238<>\"\",HYPERLINK((VLOOKUP(TRIM(C238),'Paramètres 3'!A:B,2,FALSE)),\"Lien\"),\"\")","v":""}]
[null,{"$f":"IF(C239<>\"\",HYPERLINK((VLOOKUP(TRIM(C239),'Paramètres 3'!A:B,2,FALSE)),\"Lien\"),\"\")","v":""}]
[null,{"$f":"IF(C240<>\"\",HYPERLINK((VLOOKUP(TRIM(C240),'Paramètres 3'!A:B,2,FALSE)),\"Lien\"),\"\")","v":""}]
[null,{"$f":"IF(C241<>\"\",HYPERLINK((VLOOKUP(TRIM(C241),'Paramètres 3'!A:B,2,FALSE)),\"Lien\"),\"\")","v":""}]
[null,{"$f":"IF(C242<>\"\",HYPERLINK((VLOOKUP(TRIM(C242),'Paramètres 3'!A:B,2,FALSE)),\"Lien\"),\"\")","v":""}]
[null,{"$f":"IF(C243<>\"\",HYPERLINK((VLOOKUP(TRIM(C243),'Paramètres 3'!A:B,2,FALSE)),\"Lien\"),\"\")","v":""}]
[null,{"$f":"IF(C244<>\"\",HYPERLINK((VLOOKUP(TRIM(C244),'Paramètres 3'!A:B,2,FALSE)),\"Lien\"),\"\")","v":""}]
[null,{"$f":"IF(C245<>\"\",HYPERLINK((VLOOKUP(TRIM(C245),'Paramètres 3'!A:B,2,FALSE)),\"Lien\"),\"\")","v":""}]
[null,{"$f":"IF(C246<>\"\",HYPERLINK((VLOOKUP(TRIM(C246),'Paramètres 3'!A:B,2,FALSE)),\"Lien\"),\"\")","v":""}]
[null,{"$f":"IF(C247<>\"\",HYPERLINK((VLOOKUP(TRIM(C247),'Paramètres 3'!A:B,2,FALSE)),\"Lien\"),\"\")","v":""}]
[null,{"$f":"IF(C248<>\"\",HYPERLINK((VLOOKUP(TRIM(C248),'Paramètres 3'!A:B,2,FALSE)),\"Lien\"),\"\")","v":""}]
[null,{"$f":"IF(C249<>\"\",HYPERLINK((VLOOKUP(TRIM(C249),'Paramètres 3'!A:B,2,FALSE)),\"Lien\"),\"\")","v":""}]
[null,{"$f":"IF(C250<>\"\",HYPERLINK((VLOOKUP(TRIM(C250),'Paramètres 3'!A:B,2,FALSE)),\"Lien\"),\"\")","v":""}]
[null,{"$f":"IF(C251<>\"\",HYPERLINK((VLOOKUP(TRIM(C251),'Paramètres 3'!A:B,2,FALSE)),\"Lien\"),\"\")","v":""}]
[null,{"$f":"IF(C252<>\"\",HYPERLINK((VLOOKUP(TRIM(C252),'Paramètres 3'!A:B,2,FALSE)),\"Lien\"),\"\")","v":""}]
[null,{"$f":"IF(C253<>\"\",HYPERLINK((VLOOKUP(TRIM(C253),'Paramètres 3'!A:B,2,FALSE)),\"Lien\"),\"\")","v":""}]
[null,{"$f":"IF(C254<>\"\",HYPERLINK((VLOOKUP(TRIM(C254),'Paramètres 3'!A:B,2,FALSE)),\"Lien\"),\"\")","v":""}]
[null,{"$f":"IF(C255<>\"\",HYPERLINK((VLOOKUP(TRIM(C255),'Paramètres 3'!A:B,2,FALSE)),\"Lien\"),\"\")","v":""}]
[null,{"$f":"IF(C256<>\"\",HYPERLINK((VLOOKUP(TRIM(C256),'Paramètres 3'!A:B,2,FALSE)),\"Lien\"),\"\")","v":""}]
[null,{"$f":"IF(C257<>\"\",HYPERLINK((VLOOKUP(TRIM(C257),'Paramètres 3'!A:B,2,FALSE)),\"Lien\"),\"\")","v":""}]
[null,{"$f":"IF(C258<>\"\",HYPERLINK((VLOOKUP(TRIM(C258),'Paramètres 3'!A:B,2,FALSE)),\"Lien\"),\"\")","v":""}]
[null,{"$f":"IF(C259<>\"\",HYPERLINK((VLOOKUP(TRIM(C259),'Paramètres 3'!A:B,2,FALSE)),\"Lien\"),\"\")","v":""}]
[null,{"$f":"IF(C260<>\"\",HYPERLINK((VLOOKUP(TRIM(C260),'Paramètres 3'!A:B,2,FALSE)),\"Lien\"),\"\")","v":""}]
[null,{"$f":"IF(C261<>\"\",HYPERLINK((VLOOKUP(TRIM(C261),'Paramètres 3'!A:B,2,FALSE)),\"Lien\"),\"\")","v":""}]
[null,{"$f":"IF(C262<>\"\",HYPERLINK((VLOOKUP(TRIM(C262),'Paramètres 3'!A:B,2,FALSE)),\"Lien\"),\"\")","v":""}]
[null,{"$f":"IF(C263<>\"\",HYPERLINK((VLOOKUP(TRIM(C263),'Paramètres 3'!A:B,2,FALSE)),\"Lien\"),\"\")","v":""}]
[null,{"$f":"IF(C264<>\"\",HYPERLINK((VLOOKUP(TRIM(C264),'Paramètres 3'!A:B,2,FALSE)),\"Lien\"),\"\")","v":""}]
[null,{"$f":"IF(C265<>\"\",HYPERLINK((VLOOKUP(TRIM(C265),'Paramètres 3'!A:B,2,FALSE)),\"Lien\"),\"\")","v":""}]
[null,{"$f":"IF(C266<>\"\",HYPERLINK((VLOOKUP(TRIM(C266),'Paramètres 3'!A:B,2,FALSE)),\"Lien\"),\"\")","v":""}]
[null,{"$f":"IF(C267<>\"\",HYPERLINK((VLOOKUP(TRIM(C267),'Paramètres 3'!A:B,2,FALSE)),\"Lien\"),\"\")","v":""}]
[null,{"$f":"IF(C268<>\"\",HYPERLINK((VLOOKUP(TRIM(C268),'Paramètres 3'!A:B,2,FALSE)),\"Lien\"),\"\")","v":""}]
[null,{"$f":"IF(C269<>\"\",HYPERLINK((VLOOKUP(TRIM(C269),'Paramètres 3'!A:B,2,FALSE)),\"Lien\"),\"\")","v":""}]
[null,{"$f":"IF(C270<>\"\",HYPERLINK((VLOOKUP(TRIM(C270),'Paramètres 3'!A:B,2,FALSE)),\"Lien\"),\"\")","v":""}]
[null,{"$f":"IF(C271<>\"\",HYPERLINK((VLOOKUP(TRIM(C271),'Paramètres 3'!A:B,2,FALSE)),\"Lien\"),\"\")","v":""}]
[null,{"$f":"IF(C272<>\"\",HYPERLINK((VLOOKUP(TRIM(C272),'Paramètres 3'!A:B,2,FALSE)),\"Lien\"),\"\")","v":""}]
[null,{"$f":"IF(C273<>\"\",HYPERLINK((VLOOKUP(TRIM(C273),'Paramètres 3'!A:B,2,FALSE)),\"Lien\"),\"\")","v":""}]
[null,{"$f":"IF(C274<>\"\",HYPERLINK((VLOOKUP(TRIM(C274),'Paramètres 3'!A:B,2,FALSE)),\"Lien\"),\"\")","v":""}]
[null,{"$f":"IF(C275<>\"\",HYPERLINK((VLOOKUP(TRIM(C275),'Paramètres 3'!A:B,2,FALSE)),\"Lien\"),\"\")","v":""}]
[null,{"$f":"IF(C276<>\"\",HYPERLINK((VLOOKUP(TRIM(C276),'Paramètres 3'!A:B,2,FALSE)),\"Lien\"),\"\")","v":""}]
[null,{"$f":"IF(C277<>\"\",HYPERLINK((VLOOKUP(TRIM(C277),'Paramètres 3'!A:B,2,FALSE)),\"Lien\"),\"\")","v":""}]
[null,{"$f":"IF(C278<>\"\",HYPERLINK((VLOOKUP(TRIM(C278),'Paramètres 3'!A:B,2,FALSE)),\"Lien\"),\"\")","v":""}]
[null,{"$f":"IF(C279<>\"\",HYPERLINK((VLOOKUP(TRIM(C279),'Paramètres 3'!A:B,2,FALSE)),\"Lien\"),\"\")","v":""}]
[null,{"$f":"IF(C280<>\"\",HYPERLINK((VLOOKUP(TRIM(C280),'Paramètres 3'!A:B,2,FALSE)),\"Lien\"),\"\")","v":""}]
[null,{"$f":"IF(C281<>\"\",HYPERLINK((VLOOKUP(TRIM(C281),'Paramètres 3'!A:B,2,FALSE)),\"Lien\"),\"\")","v":""}]
[null,{"$f":"IF(C282<>\"\",HYPERLINK((VLOOKUP(TRIM(C282),'Paramètres 3'!A:B,2,FALSE)),\"Lien\"),\"\")","v":""}]
[null,{"$f":"IF(C283<>\"\",HYPERLINK((VLOOKUP(TRIM(C283),'Paramètres 3'!A:B,2,FALSE)),\"Lien\"),\"\")","v":""}]
[null,{"$f":"IF(C284<>\"\",HYPERLINK((VLOOKUP(TRIM(C284),'Paramètres 3'!A:B,2,FALSE)),\"Lien\"),\"\")","v":""}]
[null,{"$f":"IF(C285<>\"\",HYPERLINK((VLOOKUP(TRIM(C285),'Paramètres 3'!A:B,2,FALSE)),\"Lien\"),\"\")","v":""}]
[null,{"$f":"IF(C286<>\"\",HYPERLINK((VLOOKUP(TRIM(C286),'Paramètres 3'!A:B,2,FALSE)),\"Lien\"),\"\")","v":""}]
[null,{"$f":"IF(C287<>\"\",HYPERLINK((VLOOKUP(TRIM(C287),'Paramètres 3'!A:B,2,FALSE)),\"Lien\"),\"\")","v":""}]
[null,{"$f":"IF(C288<>\"\",HYPERLINK((VLOOKUP(TRIM(C288),'Paramètres 3'!A:B,2,FALSE)),\"Lien\"),\"\")","v":""}]
[null,{"$f":"IF(C289<>\"\",HYPERLINK((VLOOKUP(TRIM(C289),'Paramètres 3'!A:B,2,FALSE)),\"Lien\"),\"\")","v":""}]
[null,{"$f":"IF(C290<>\"\",HYPERLINK((VLOOKUP(TRIM(C290),'Paramètres 3'!A:B,2,FALSE)),\"Lien\"),\"\")","v":""}]
[null,{"$f":"IF(C291<>\"\",HYPERLINK((VLOOKUP(TRIM(C291),'Paramètres 3'!A:B,2,FALSE)),\"Lien\"),\"\")","v":""}]
[null,{"$f":"IF(C292<>\"\",HYPERLINK((VLOOKUP(TRIM(C292),'Paramètres 3'!A:B,2,FALSE)),\"Lien\"),\"\")","v":""}]
[null,{"$f":"IF(C293<>\"\",HYPERLINK((VLOOKUP(TRIM(C293),'Paramètres 3'!A:B,2,FALSE)),\"Lien\"),\"\")","v":""}]
[null,{"$f":"IF(C294<>\"\",HYPERLINK((VLOOKUP(TRIM(C294),'Paramètres 3'!A:B,2,FALSE)),\"Lien\"),\"\")","v":""}]
[null,{"$f":"IF(C295<>\"\",HYPERLINK((VLOOKUP(TRIM(C295),'Paramètres 3'!A:B,2,FALSE)),\"Lien\"),\"\")","v":""}]
[null,{"$f":"IF(C296<>\"\",HYPERLINK((VLOOKUP(TRIM(C296),'Paramètres 3'!A:B,2,FALSE)),\"Lien\"),\"\")","v":""}]
[null,{"$f":"IF(C297<>\"\",HYPERLINK((VLOOKUP(TRIM(C297),'Paramètres 3'!A:B,2,FALSE)),\"Lien\"),\"\")","v":""}]
[null,{"$f":"IF(C298<>\"\",HYPERLINK((VLOOKUP(TRIM(C298),'Paramètres 3'!A:B,2,FALSE)),\"Lien\"),\"\")","v":""}]
[null,{"$f":"IF(C299<>\"\",HYPERLINK((VLOOKUP(TRIM(C299),'Paramètres 3'!A:B,2,FALSE)),\"Lien\"),\"\")","v":""}]
[null,{"$f":"IF(C300<>\"\",HYPERLINK((VLOOKUP(TRIM(C300),'Paramètres 3'!A:B,2,FALSE)),\"Lien\"),\"\")","v":""}]
[null,{"$f":"IF(C301<>\"\",HYPERLINK((VLOOKUP(TRIM(C301),'Paramètres 3'!A:B,2,FALSE)),\"Lien\"),\"\")","v":""}]
[null,{"$f":"IF(C302<>\"\",HYPERLINK((VLOOKUP(TRIM(C302),'Paramètres 3'!A:B,2,FALSE)),\"Lien\"),\"\")","v":""}]
[null,{"$f":"IF(C303<>\"\",HYPERLINK((VLOOKUP(TRIM(C303),'Paramètres 3'!A:B,2,FALSE)),\"Lien\"),\"\")","v":""}]
[null,{"$f":"IF(C304<>\"\",HYPERLINK((VLOOKUP(TRIM(C304),'Paramètres 3'!A:B,2,FALSE)),\"Lien\"),\"\")","v":""}]
[null,{"$f":"IF(C305<>\"\",HYPERLINK((VLOOKUP(TRIM(C305),'Paramètres 3'!A:B,2,FALSE)),\"Lien\"),\"\")","v":""}]
[null,{"$f":"IF(C306<>\"\",HYPERLINK((VLOOKUP(TRIM(C306),'Paramètres 3'!A:B,2,FALSE)),\"Lien\"),\"\")","v":""}]
[null,{"$f":"IF(C307<>\"\",HYPERLINK((VLOOKUP(TRIM(C307),'Paramètres 3'!A:B,2,FALSE)),\"Lien\"),\"\")","v":""}]
[null,{"$f":"IF(C308<>\"\",HYPERLINK((VLOOKUP(TRIM(C308),'Paramètres 3'!A:B,2,FALSE)),\"Lien\"),\"\")","v":""}]
[null,{"$f":"IF(C309<>\"\",HYPERLINK((VLOOKUP(TRIM(C309),'Paramètres 3'!A:B,2,FALSE)),\"Lien\"),\"\")","v":""}]
[null,{"$f":"IF(C310<>\"\",HYPERLINK((VLOOKUP(TRIM(C310),'Paramètres 3'!A:B,2,FALSE)),\"Lien\"),\"\")","v":""}]
[null,{"$f":"IF(C311<>\"\",HYPERLINK((VLOOKUP(TRIM(C311),'Paramètres 3'!A:B,2,FALSE)),\"Lien\"),\"\")","v":""}]
[null,{"$f":"IF(C312<>\"\",HYPERLINK((VLOOKUP(TRIM(C312),'Paramètres 3'!A:B,2,FALSE)),\"Lien\"),\"\")","v":""}]
[null,{"$f":"IF(C313<>\"\",HYPERLINK((VLOOKUP(TRIM(C313),'Paramètres 3'!A:B,2,FALSE)),\"Lien\"),\"\")","v":""}]
[null,{"$f":"IF(C314<>\"\",HYPERLINK((VLOOKUP(TRIM(C314),'Paramètres 3'!A:B,2,FALSE)),\"Lien\"),\"\")","v":""}]
[null,{"$f":"IF(C315<>\"\",HYPERLINK((VLOOKUP(TRIM(C315),'Paramètres 3'!A:B,2,FALSE)),\"Lien\"),\"\")","v":""}]
[null,{"$f":"IF(C316<>\"\",HYPERLINK((VLOOKUP(TRIM(C316),'Paramètres 3'!A:B,2,FALSE)),\"Lien\"),\"\")","v":""}]
[null,{"$f":"IF(C317<>\"\",HYPERLINK((VLOOKUP(TRIM(C317),'Paramètres 3'!A:B,2,FALSE)),\"Lien\"),\"\")","v":""}]
[null,{"$f":"IF(C318<>\"\",HYPERLINK((VLOOKUP(TRIM(C318),'Paramètres 3'!A:B,2,FALSE)),\"Lien\"),\"\")","v":""}]
[null,{"$f":"IF(C319<>\"\",HYPERLINK((VLOOKUP(TRIM(C319),'Paramètres 3'!A:B,2,FALSE)),\"Lien\"),\"\")","v":""}]
[null,{"$f":"IF(C320<>\"\",HYPERLINK((VLOOKUP(TRIM(C320),'Paramètres 3'!A:B,2,FALSE)),\"Lien\"),\"\")","v":""}]
[null,{"$f":"IF(C321<>\"\",HYPERLINK((VLOOKUP(TRIM(C321),'Paramètres 3'!A:B,2,FALSE)),\"Lien\"),\"\")","v":""}]
[null,{"$f":"IF(C322<>\"\",HYPERLINK((VLOOKUP(TRIM(C322),'Paramètres 3'!A:B,2,FALSE)),\"Lien\"),\"\")","v":""}]
[null,{"$f":"IF(C323<>\"\",HYPERLINK((VLOOKUP(TRIM(C323),'Paramètres 3'!A:B,2,FALSE)),\"Lien\"),\"\")","v":""}]
[null,{"$f":"IF(C324<>\"\",HYPERLINK((VLOOKUP(TRIM(C324),'Paramètres 3'!A:B,2,FALSE)),\"Lien\"),\"\")","v":""}]
[null,{"$f":"IF(C325<>\"\",HYPERLINK((VLOOKUP(TRIM(C325),'Paramètres 3'!A:B,2,FALSE)),\"Lien\"),\"\")","v":""}]
[null,{"$f":"IF(C326<>\"\",HYPERLINK((VLOOKUP(TRIM(C326),'Paramètres 3'!A:B,2,FALSE)),\"Lien\"),\"\")","v":""}]
[null,{"$f":"IF(C327<>\"\",HYPERLINK((VLOOKUP(TRIM(C327),'Paramètres 3'!A:B,2,FALSE)),\"Lien\"),\"\")","v":""}]
[null,{"$f":"IF(C328<>\"\",HYPERLINK((VLOOKUP(TRIM(C328),'Paramètres 3'!A:B,2,FALSE)),\"Lien\"),\"\")","v":""}]
[null,{"$f":"IF(C329<>\"\",HYPERLINK((VLOOKUP(TRIM(C329),'Paramètres 3'!A:B,2,FALSE)),\"Lien\"),\"\")","v":""}]
[null,{"$f":"IF(C330<>\"\",HYPERLINK((VLOOKUP(TRIM(C330),'Paramètres 3'!A:B,2,FALSE)),\"Lien\"),\"\")","v":""}]
[null,{"$f":"IF(C331<>\"\",HYPERLINK((VLOOKUP(TRIM(C331),'Paramètres 3'!A:B,2,FALSE)),\"Lien\"),\"\")","v":""}]
[null,{"$f":"IF(C332<>\"\",HYPERLINK((VLOOKUP(TRIM(C332),'Paramètres 3'!A:B,2,FALSE)),\"Lien\"),\"\")","v":""}]
[null,{"$f":"IF(C333<>\"\",HYPERLINK((VLOOKUP(TRIM(C333),'Paramètres 3'!A:B,2,FALSE)),\"Lien\"),\"\")","v":""}]
[null,{"$f":"IF(C334<>\"\",HYPERLINK((VLOOKUP(TRIM(C334),'Paramètres 3'!A:B,2,FALSE)),\"Lien\"),\"\")","v":""}]
[null,{"$f":"IF(C335<>\"\",HYPERLINK((VLOOKUP(TRIM(C335),'Paramètres 3'!A:B,2,FALSE)),\"Lien\"),\"\")","v":""}]
[null,{"$f":"IF(C336<>\"\",HYPERLINK((VLOOKUP(TRIM(C336),'Paramètres 3'!A:B,2,FALSE)),\"Lien\"),\"\")","v":""}]
[null,{"$f":"IF(C337<>\"\",HYPERLINK((VLOOKUP(TRIM(C337),'Paramètres 3'!A:B,2,FALSE)),\"Lien\"),\"\")","v":""}]
[null,{"$f":"IF(C338<>\"\",HYPERLINK((VLOOKUP(TRIM(C338),'Paramètres 3'!A:B,2,FALSE)),\"Lien\"),\"\")","v":""}]
[null,{"$f":"IF(C339<>\"\",HYPERLINK((VLOOKUP(TRIM(C339),'Paramètres 3'!A:B,2,FALSE)),\"Lien\"),\"\")","v":""}]
[null,{"$f":"IF(C340<>\"\",HYPERLINK((VLOOKUP(TRIM(C340),'Paramètres 3'!A:B,2,FALSE)),\"Lien\"),\"\")","v":""}]
[null,{"$f":"IF(C341<>\"\",HYPERLINK((VLOOKUP(TRIM(C341),'Paramètres 3'!A:B,2,FALSE)),\"Lien\"),\"\")","v":""}]
[null,{"$f":"IF(C342<>\"\",HYPERLINK((VLOOKUP(TRIM(C342),'Paramètres 3'!A:B,2,FALSE)),\"Lien\"),\"\")","v":""}]
[null,{"$f":"IF(C343<>\"\",HYPERLINK((VLOOKUP(TRIM(C343),'Paramètres 3'!A:B,2,FALSE)),\"Lien\"),\"\")","v":""}]
[null,{"$f":"IF(C344<>\"\",HYPERLINK((VLOOKUP(TRIM(C344),'Paramètres 3'!A:B,2,FALSE)),\"Lien\"),\"\")","v":""}]
[null,{"$f":"IF(C345<>\"\",HYPERLINK((VLOOKUP(TRIM(C345),'Paramètres 3'!A:B,2,FALSE)),\"Lien\"),\"\")","v":""}]
[null,{"$f":"IF(C346<>\"\",HYPERLINK((VLOOKUP(TRIM(C346),'Paramètres 3'!A:B,2,FALSE)),\"Lien\"),\"\")","v":""}]
[null,{"$f":"IF(C347<>\"\",HYPERLINK((VLOOKUP(TRIM(C347),'Paramètres 3'!A:B,2,FALSE)),\"Lien\"),\"\")","v":""}]
[null,{"$f":"IF(C348<>\"\",HYPERLINK((VLOOKUP(TRIM(C348),'Paramètres 3'!A:B,2,FALSE)),\"Lien\"),\"\")","v":""}]
[null,{"$f":"IF(C349<>\"\",HYPERLINK((VLOOKUP(TRIM(C349),'Paramètres 3'!A:B,2,FALSE)),\"Lien\"),\"\")","v":""}]
[null,{"$f":"IF(C350<>\"\",HYPERLINK((VLOOKUP(TRIM(C350),'Paramètres 3'!A:B,2,FALSE)),\"Lien\"),\"\")","v":""}]
[null,{"$f":"IF(C351<>\"\",HYPERLINK((VLOOKUP(TRIM(C351),'Paramètres 3'!A:B,2,FALSE)),\"Lien\"),\"\")","v":""}]
[null,{"$f":"IF(C352<>\"\",HYPERLINK((VLOOKUP(TRIM(C352),'Paramètres 3'!A:B,2,FALSE)),\"Lien\"),\"\")","v":""}]
[null,{"$f":"IF(C353<>\"\",HYPERLINK((VLOOKUP(TRIM(C353),'Paramètres 3'!A:B,2,FALSE)),\"Lien\"),\"\")","v":""}]
[null,{"$f":"IF(C354<>\"\",HYPERLINK((VLOOKUP(TRIM(C354),'Paramètres 3'!A:B,2,FALSE)),\"Lien\"),\"\")","v":""}]
[null,{"$f":"IF(C355<>\"\",HYPERLINK((VLOOKUP(TRIM(C355),'Paramètres 3'!A:B,2,FALSE)),\"Lien\"),\"\")","v":""}]
[null,{"$f":"IF(C356<>\"\",HYPERLINK((VLOOKUP(TRIM(C356),'Paramètres 3'!A:B,2,FALSE)),\"Lien\"),\"\")","v":""}]
[null,{"$f":"IF(C357<>\"\",HYPERLINK((VLOOKUP(TRIM(C357),'Paramètres 3'!A:B,2,FALSE)),\"Lien\"),\"\")","v":""}]
[null,{"$f":"IF(C358<>\"\",HYPERLINK((VLOOKUP(TRIM(C358),'Paramètres 3'!A:B,2,FALSE)),\"Lien\"),\"\")","v":""}]
[null,{"$f":"IF(C359<>\"\",HYPERLINK((VLOOKUP(TRIM(C359),'Paramètres 3'!A:B,2,FALSE)),\"Lien\"),\"\")","v":""}]
[null,{"$f":"IF(C360<>\"\",HYPERLINK((VLOOKUP(TRIM(C360),'Paramètres 3'!A:B,2,FALSE)),\"Lien\"),\"\")","v":""}]
[null,{"$f":"IF(C361<>\"\",HYPERLINK((VLOOKUP(TRIM(C361),'Paramètres 3'!A:B,2,FALSE)),\"Lien\"),\"\")","v":""}]
[null,{"$f":"IF(C362<>\"\",HYPERLINK((VLOOKUP(TRIM(C362),'Paramètres 3'!A:B,2,FALSE)),\"Lien\"),\"\")","v":""}]
[null,{"$f":"IF(C363<>\"\",HYPERLINK((VLOOKUP(TRIM(C363),'Paramètres 3'!A:B,2,FALSE)),\"Lien\"),\"\")","v":""}]
[null,{"$f":"IF(C364<>\"\",HYPERLINK((VLOOKUP(TRIM(C364),'Paramètres 3'!A:B,2,FALSE)),\"Lien\"),\"\")","v":""}]
[null,{"$f":"IF(C365<>\"\",HYPERLINK((VLOOKUP(TRIM(C365),'Paramètres 3'!A:B,2,FALSE)),\"Lien\"),\"\")","v":""}]
[null,{"$f":"IF(C366<>\"\",HYPERLINK((VLOOKUP(TRIM(C366),'Paramètres 3'!A:B,2,FALSE)),\"Lien\"),\"\")","v":""}]
[null,{"$f":"IF(C367<>\"\",HYPERLINK((VLOOKUP(TRIM(C367),'Paramètres 3'!A:B,2,FALSE)),\"Lien\"),\"\")","v":""}]
[null,{"$f":"IF(C368<>\"\",HYPERLINK((VLOOKUP(TRIM(C368),'Paramètres 3'!A:B,2,FALSE)),\"Lien\"),\"\")","v":""}]
[null,{"$f":"IF(C369<>\"\",HYPERLINK((VLOOKUP(TRIM(C369),'Paramètres 3'!A:B,2,FALSE)),\"Lien\"),\"\")","v":""}]
[null,{"$f":"IF(C370<>\"\",HYPERLINK((VLOOKUP(TRIM(C370),'Paramètres 3'!A:B,2,FALSE)),\"Lien\"),\"\")","v":""}]
[null,{"$f":"IF(C371<>\"\",HYPERLINK((VLOOKUP(TRIM(C371),'Paramètres 3'!A:B,2,FALSE)),\"Lien\"),\"\")","v":""}]
[null,{"$f":"IF(C372<>\"\",HYPERLINK((VLOOKUP(TRIM(C372),'Paramètres 3'!A:B,2,FALSE)),\"Lien\"),\"\")","v":""}]
[null,{"$f":"IF(C373<>\"\",HYPERLINK((VLOOKUP(TRIM(C373),'Paramètres 3'!A:B,2,FALSE)),\"Lien\"),\"\")","v":""}]
[null,{"$f":"IF(C374<>\"\",HYPERLINK((VLOOKUP(TRIM(C374),'Paramètres 3'!A:B,2,FALSE)),\"Lien\"),\"\")","v":""}]
[null,{"$f":"IF(C375<>\"\",HYPERLINK((VLOOKUP(TRIM(C375),'Paramètres 3'!A:B,2,FALSE)),\"Lien\"),\"\")","v":""}]
[null,{"$f":"IF(C376<>\"\",HYPERLINK((VLOOKUP(TRIM(C376),'Paramètres 3'!A:B,2,FALSE)),\"Lien\"),\"\")","v":""}]
[null,{"$f":"IF(C377<>\"\",HYPERLINK((VLOOKUP(TRIM(C377),'Paramètres 3'!A:B,2,FALSE)),\"Lien\"),\"\")","v":""}]
[null,{"$f":"IF(C378<>\"\",HYPERLINK((VLOOKUP(TRIM(C378),'Paramètres 3'!A:B,2,FALSE)),\"Lien\"),\"\")","v":""}]
[null,{"$f":"IF(C379<>\"\",HYPERLINK((VLOOKUP(TRIM(C379),'Paramètres 3'!A:B,2,FALSE)),\"Lien\"),\"\")","v":""}]
[null,{"$f":"IF(C380<>\"\",HYPERLINK((VLOOKUP(TRIM(C380),'Paramètres 3'!A:B,2,FALSE)),\"Lien\"),\"\")","v":""}]
[null,{"$f":"IF(C381<>\"\",HYPERLINK((VLOOKUP(TRIM(C381),'Paramètres 3'!A:B,2,FALSE)),\"Lien\"),\"\")","v":""}]
[null,{"$f":"IF(C382<>\"\",HYPERLINK((VLOOKUP(TRIM(C382),'Paramètres 3'!A:B,2,FALSE)),\"Lien\"),\"\")","v":""}]
[null,{"$f":"IF(C383<>\"\",HYPERLINK((VLOOKUP(TRIM(C383),'Paramètres 3'!A:B,2,FALSE)),\"Lien\"),\"\")","v":""}]
[null,{"$f":"IF(C384<>\"\",HYPERLINK((VLOOKUP(TRIM(C384),'Paramètres 3'!A:B,2,FALSE)),\"Lien\"),\"\")","v":""}]
[null,{"$f":"IF(C385<>\"\",HYPERLINK((VLOOKUP(TRIM(C385),'Paramètres 3'!A:B,2,FALSE)),\"Lien\"),\"\")","v":""}]
[null,{"$f":"IF(C386<>\"\",HYPERLINK((VLOOKUP(TRIM(C386),'Paramètres 3'!A:B,2,FALSE)),\"Lien\"),\"\")","v":""}]
[null,{"$f":"IF(C387<>\"\",HYPERLINK((VLOOKUP(TRIM(C387),'Paramètres 3'!A:B,2,FALSE)),\"Lien\"),\"\")","v":""}]
[null,{"$f":"IF(C388<>\"\",HYPERLINK((VLOOKUP(TRIM(C388),'Paramètres 3'!A:B,2,FALSE)),\"Lien\"),\"\")","v":""}]
[null,{"$f":"IF(C389<>\"\",HYPERLINK((VLOOKUP(TRIM(C389),'Paramètres 3'!A:B,2,FALSE)),\"Lien\"),\"\")","v":""}]
[null,{"$f":"IF(C390<>\"\",HYPERLINK((VLOOKUP(TRIM(C390),'Paramètres 3'!A:B,2,FALSE)),\"Lien\"),\"\")","v":""}]
[null,{"$f":"IF(C391<>\"\",HYPERLINK((VLOOKUP(TRIM(C391),'Paramètres 3'!A:B,2,FALSE)),\"Lien\"),\"\")","v":""}]
[null,{"$f":"IF(C392<>\"\",HYPERLINK((VLOOKUP(TRIM(C392),'Paramètres 3'!A:B,2,FALSE)),\"Lien\"),\"\")","v":""}]
[null,{"$f":"IF(C393<>\"\",HYPERLINK((VLOOKUP(TRIM(C393),'Paramètres 3'!A:B,2,FALSE)),\"Lien\"),\"\")","v":""}]
[null,{"$f":"IF(C394<>\"\",HYPERLINK((VLOOKUP(TRIM(C394),'Paramètres 3'!A:B,2,FALSE)),\"Lien\"),\"\")","v":""}]
[null,{"$f":"IF(C395<>\"\",HYPERLINK((VLOOKUP(TRIM(C395),'Paramètres 3'!A:B,2,FALSE)),\"Lien\"),\"\")","v":""}]
[null,{"$f":"IF(C396<>\"\",HYPERLINK((VLOOKUP(TRIM(C396),'Paramètres 3'!A:B,2,FALSE)),\"Lien\"),\"\")","v":""}]
[null,{"$f":"IF(C397<>\"\",HYPERLINK((VLOOKUP(TRIM(C397),'Paramètres 3'!A:B,2,FALSE)),\"Lien\"),\"\")","v":""}]
[null,{"$f":"IF(C398<>\"\",HYPERLINK((VLOOKUP(TRIM(C398),'Paramètres 3'!A:B,2,FALSE)),\"Lien\"),\"\")","v":""}]
[null,{"$f":"IF(C399<>\"\",HYPERLINK((VLOOKUP(TRIM(C399),'Paramètres 3'!A:B,2,FALSE)),\"Lien\"),\"\")","v":""}]
[null,{"$f":"IF(C400<>\"\",HYPERLINK((VLOOKUP(TRIM(C400),'Paramètres 3'!A:B,2,FALSE)),\"Lien\"),\"\")","v":""}]
[null,{"$f":"IF(C401<>\"\",HYPERLINK((VLOOKUP(TRIM(C401),'Paramètres 3'!A:B,2,FALSE)),\"Lien\"),\"\")","v":""}]
[null,{"$f":"IF(C402<>\"\",HYPERLINK((VLOOKUP(TRIM(C402),'Paramètres 3'!A:B,2,FALSE)),\"Lien\"),\"\")","v":""}]
[null,{"$f":"IF(C403<>\"\",HYPERLINK((VLOOKUP(TRIM(C403),'Paramètres 3'!A:B,2,FALSE)),\"Lien\"),\"\")","v":""}]

{"sheet":"RPS","index":7,"n_rows":24,"n_cols":11,"rows_kept":24,"cut":false,"hidden":false,"merged":[[0,0,0,1],[2,1,2,2],[2,3,2,5],[2,6,3,6],[2,7,2,10]]}
["Unité de travail",null,"Nombre de salariés :",1]
[]
[null,null,null,"Cotation ",null,null,"Mesures de prévention existantes","Plan de prévention"]
["Phase de travail","Risque","Danger","Fréquence","Gravité","Priorité",null,"Mesure de prévention à mettre en place","Référent de l'action","Délai d'exécution","Réalisée le"]
[null,"Risques liés aux exigences émotionnelles","Manque de reconnaissance (Rémunération, statut, perspectives de carrière proposées )\n",null,null,{"$f":"D5*E5","v":0}]
[null,"Risques liés aux conflits de valeur","Postes de travail soumis aux ultraviolets",null,null,0]
[null,"Risques liés aux exigences émotionnelles","actes de violence vécus",null,null,{"$f":"D7*E7","v":0}]
[null,"Risques liés à l'intensité et à la complexicité du travail","Contraintes de rythmes élevés",null,null,0]
[null,null,null,null,null,0]
[null,null,null,null,null,0]
[null,null,null,null,null,0]
[null,null,null,null,null,0]
[null,null,null,null,null,0]
[null,null,null,null,null,0]
[null,null,null,null,null,0]
[null,null,null,null,null,0]
[null,null,null,null,null,0]
[null,null,null,null,null,0]
[null,null,null,null,null,0]
[null,null,null,null,null,0]
[null,null,null,null,null,0]
[]
[]
[null,"Risques liés à une faible autonomie du travail et à l'utilisation des compétence","Manque d’autonomie dans la tâche (Pas de choix dans la façon de travailler, pas de possibilité de prendre des initiatives ou pas de possibilité d'action pour organiser et réaliser son travail (choix des techniques, des outils, des mouvements et des gestes) )"]

{"sheet":"Facteurs de pénibilité","index":8,"n_rows":47,"n_cols":7,"rows_kept":47,"cut":false,"hidden":false,"merged":[[17,3,19,3],[20,1,22,1],[20,2,22,3],[4,1,4,6],[10,1,13,1],[10,2,10,4],[11,2,13,2],[11,3,13,3],[14,1,19,1],[17,2,19,2],[29,1,30,1],[29,2,29,4],[23,1,25,1],[23,2,24,2],[23,3,24,3],[43,2,43,3],[31,3,31,4],[32,1,34,1],[32,2,34,2],[32,3,34,3],[35,2,35,3],[36,1,37,1],[36,2,36,3],[37,2,37,3],[41,1,42,1],[41,2,41,4],[44,2,44,3],[45,1,46,1],[45,2,45,3],[45,4,46,4],[46,2,46,3],[45,6,46,6],[11,5,13,5],[11,6,13,6],[32,5,34,5],[32,6,34,6],[14,6,16,6],[17,6,19,6],[20,6,22,6],[23,6,25,6],[45,5,46,5],[14,5,16,5],[17,5,19,5],[20,5,22,5],[23,5,25,5]]}
[]
[]
[]
[]
[null,"Proportion des salariés exposés aux facteurs de pénibilité au-delà des seuils prévus à l'article D. 4161-2 du Code du travail"]
[]
[null,"dans l'évaluation des risques, les facteurs de pénibilité sont identifiés par un asterisque  *"]
[]
[null,"1. liés à des contraintes physiques marquées"]
[]
[null,"FACTEUR DE RISQUES PROFESSIONNELS","SEUIL",null,null,"% EFFECTIF EXPOSE"]
[null,null,"Action ou situation","Intensité minimale",null,"Homme","Femme"]
[null,null,null,null,"Durée"]
[null,null,null,null,"minimale"]
[null,"a) Manutentions manuelles de charges définies à l'article R. 4541-2","Lever ou porter","Charge unitaire de 15 kilogrammes",null,0,0]
[null,null,"Pousser ou tirer","Charge unitaire de 250 kilogrammes","600 heures"]
[null,null,"Déplacement du travailleur avec la charge ou prise de la charge au sol ou à une hauteur située au-dessus des épaules","Charge unitaire de 10 kilogrammes","par an"]
[null,null,"Cumul de manutentions de charges","7,5 tonnes cumulées par jour",null,0,0]
[null,null,null,null,"120 jours"]
[null,null,null,null,"par an"]
[null,"b) Postures pénibles définies comme positions forcées des articulations","Maintien des bras en l'air à une hauteur située au dessus des épaules ou positions accroupies ou à genoux ou positions du torse en torsion à 30 degrés ou positions du torse fléchi à 45 degrés",null,null,0,0]
[null,null,null,null,"900 heures"]
[null,null,null,null,"par an"]
[null,"c) Vibrations mécaniques mentionnées à l'article R. 4441-1","Vibrations transmises aux mains et aux bras","Valeur d'exposition rapportée à une période de référence de 8 heures de 2,5 m/ s2",null,0,0]
[null,null,null,null,"450 heures"]
[null,null,"Vibrations transmises à l'ensemble du corps","Valeur d'exposition rapportée à une période de référence de 8 heures de 0,5 m/ s2","par an"]
[]
[null,"2. liés à un environnement physique agressif"]
[]
[null,"FACTEUR DE RISQUES PROFESSIONNELS","SEUIL",null,null,"% EFFECTIF EXPOSE"]
[null,null,"Action ou situation","Intensité minimale","Durée minimale","Homme","Femme"]
[null,"a) Agents chimiques dangereux mentionnés aux articles R. 4412-3 et R. 4412-60, y compris les poussières et les fumées","Exposition à un agent chimique dangereux relevant d'une ou plusieurs classes ou catégories de danger définies à l'annexe I du règlement (CE) n° 1272/2008 et figurant dans un arrêté du ministre chargé du travail","Le seuil est déterminé, pour chacun des agents chimiques dangereux, par application d'une grille d'évaluation prenant en compte le type de pénétration, la classe d'émission ou de contact de l'agent chimique concerné, le procédé d'utilisation ou de fabrication, les mesures de protection collective ou individuelle mises en œuvre et la durée d'exposition, qui est définie par arrêté du ministre chargé du travail et du ministre chargé de la santé",null,0,0]
[null,"b) Activités exercées en milieu hyperbare définies à l'article R. 4461-1","Interventions ou travaux","1 200 hectopascals",null,0,0]
[null,null,null,null,"60 interventions"]
[null,null,null,null,"ou travaux par an"]
[null,"c) Températures extrêmes","Température inférieure ou égale à 5 degrés Celsius ou au moins égale à 30 degrés Celsius",null,"900 heures par an",0,0]
[null,"d) Bruit mentionné à l'article R. 4431-1","Niveau d'exposition au bruit rapporté à une période de référence de huit heures d'au moins 80 décibels (A)",null,"600 heures par an",0,0]
[null,null,"Exposition à un niveau de pression acoustique de crête au moins égal à 135 décibels (C)",null,"120 fois par an",0,0]
[]
[null,"3. liés à un certain rythme de travail"]
[]
[null,"FACTEUR DE RISQUES PROFESSIONNELS","SEUIL",null,null,"% EFFECTIF EXPOSE"]
[null,null,"Action ou situation","Intensité minimale","Durée minimale","Homme","Femme"]
[null,"a) Travail de nuit dans les conditions fixées aux articles L. 3122-29 à L. 3122-31","Une heure de travail entre 24 heures et 5 heures",null,"120 nuits par an",0,0]
[null,"b) Travail en équipes successives alternantes","Travail en équipes successives alternantes impliquant au minimum une heure de travail entre 24 heures et 5 heures",null,"50 nuits par an",0,0]
[null,"c) Travail répétitif caractérisé par la répétition d'un même geste, à une cadence contrainte, imposée ou non par le déplacement automatique d'une pièce ou par la rémunération à la pièce, avec un temps de cycle défini","Temps de cycle inférieur ou égal à 1 minute",null,"900 heures par an",0,0]
[null,null,"30 actions techniques ou plus par minute avec un temps de cycle supérieur à 1 minute"]

{"sheet":"Paramètres 1","index":9,"n_rows":15,"n_cols":26,"rows_kept":15,"cut":false,"hidden":false,"merged":[]}
[null,"Risque lié au bruit*","Risque lié à l'éclairage","Risques thermiques*","Risques vibrations*","Risques rayonnements","Risques chimiques*","Risques liés au Covid-19","Risques biologiques","Risques liés à la manutention manuelle *","Risques liés aux circulations et aux déplacements dans l’entreprise","Risques liés au travail sur écran","Risques liés à la circulation routière","Risques psychosociaux","Risques liés à la malveillance","Risques de chute de plain pied","Risques liés aux chutes de hauteur","Risques liés aux machines et aux outils","Risques liés à l’électricité","Risques d’incendie ou d’explosion","Risques liés aux interventions d’entreprises extérieures","Risques liés à l’emploi d’intérimaires / stagiaires","Risques liés au travail sur des sites extérieurs","Risques liés à la manutention mécanique","Risques liés aux addictions","Risques liés aux activités exercées en milieu hyperbare*"]
[]
[null,"La communication orale est gênée ","L'éclairage entraîne des postures contraignantes au poste de travail*","Système de climatisation defectueux","Utilisation d’outils pneumatiques à main ","Postes de travail soumis aux ultraviolets","Présence d’agents chimiques faisant l’objet d’une Valeur limite d’Exposition Professionnelle (benzène, poussière de bois, chlorure de vinyle, plomb et ses composés, …)*","Exposition des salariés au Covid-19","Salariés en contacts avec des agents biologiques pathogènes (bactéries, virus, champignons …)","Manutention de charge de poids élevé*","Zones de circulation communes aux piétons et aux véhicules non balisées","Source lumineuse arrivant sur l'écran et perturbant le travail","Salariés effectuent  régulièrement des déplacements professionnels ","Voir feuille RPS","Salariés en contact avec le public ","Sol défectueux (revêtement dégradé, trou…)","Objets stockés en hauteur (racks de stockage)","Utilisation d’outils tranchants (couteaux, cutters..)","conducteur nu accessible","Zones à risque d’explosion non définies et non délimitées ","Absence de plan de prévention ","Absence de sensibilisation générale à la sécurité ","Postes de travail permanents situés sur des sites extérieurs ","Les appareils de manutention ne sont pas vérifiés","Récurrence des évènements avec consommation d’alcool"]
[null,"Exposition sonore quotidienne supérieure à 80 dB (A)","Local aveugle","Ambiances froides (à partir de 11°c) ","Utilisation d’outils vibrants *","Postes de travail soumis à des rayonnements électromagnétiques ","Emissions de fumées (soudure, gaz d’échappement), poussières (ciment, farine, sciure), gaz, produits volatils…","Le personnel a été exposé lors d'une intervention chez un client diagnostiqué positif au Covid-19 ou par un de ses collégues.","Salariés en contacts avec des animaux ou leurs produits (escréments, sang …)","Manutention effectuée de façon répétitive et à cadence élevée","Voie de circulation dangereuse (étroite, en pente…)","Mobilier inadapté entraînant l'adoption de postures contraignantes ","Véhicules utilisés non adaptés à l’activité ",null,"L’établissement contient  des valeurs  ","Sol glissant (produits répandus)","objets empilés sur de grandes hauteurs, matériaux en vrac..","Utilisation d’outils ou machines pouvant provoquer des brûlures ","Matériel électrique défectueux ","utilisation de produits comburants, inflammables, explosifs","Méconnaisssance des risques liés à la coactivité","Absence de formation au poste de travail","Salariés non informés des risques du site de travail ","Les utilisateurs des appareils de manutention ne sont pas formés et/ou recyclés"," Activités de l’entreprise et/ou fonction du salarié facilitant l’accès aux substances psychoactives"]
[null,"Bruit susceptible de couvrir un signal sonore de sécurité"," Poste de travail présentant des zones éblouissantes","Ambiances chaudes (inférieur à 30°c, proximité de matériel ou de matériau à température élevée)","Utilisation de véhicules P. L. ou d’engins de chantier","Postes de travail soumis à des rayonnements laser classe 2, 3, ou 4 ","Utilisation de produits dangereux (toxiques, corrosifs,…)","Absence du personnel","Employés en contacts avec des cadavres (travaux funéraires, équarrissage, …) ","Charge difficile à manutentionner (grande dimension, arêtes vives…)","Zone de manœuvre (chargement, demi tour..) dangereuse (manque de visibilité…)","Impossibilité de régler certains paramètres (couleur d'écran, taille des caractères...)","Entretien des véhicules non réalisé",null,"Protection mécanique absente ou en dysfonctionnement (rideaux de fer, grille …)","sol inégal (marche, pente..)","travaux effectués à plus de 3 mètres ","fluide (liquide sous pression…), matière (poussières…)pouvant être projetés","armoire électrique non fermée à clef","création d'atmosphère explosive avec l'air (produit volatil tel que solvant, poussières…)","Autres risques","EPI non fournis","Situations de coactivité","Personne conduisant un chariot automoteur sans autorisation de conduite","Conditions de travail générant une consommation de SPA : présence de facteurs de risques psychosociaux"]
[null,"Présence de sources de bruit génantes dans les locaux","Zone de passage peu ou pas éclairée","Températures extrêmes*( supérieur à 30°c ou inférieur à 10°c ; 6H/jour)","Utilisation des chariots élévateurs ","Postes de travail soumis à des rayonnements ionisants","Utilisation de produits Cancérogènes Mutagènes Reprotoxiques (CMR)","Absence d'équipement de protection individuel","Absence d’information sur la marche à suivre en cas d’accident","Manutention sur des distances importantes","Plan de circulation dans l’entreprise non établi.","Difficulté à utiliser le logiciel (défaut de formation ...)","stationnement difficile",null,"Moyens de détection absent ou en dysfonctionnement (alarmes, …) ","Passage encombré par l'entreposage d'objets divers","zone présentant des parties en contrebas (escalier, quai, fosse…)","non consignation d'une machine lors de sa réparation ou de sa maintenance","non consignation d'une installation électrique lors d'une intervention","Autres risques",null,"Autres risques","Autres risques","Moyen de manutention inadapté à la tâche"]
[null,"bruit impulsionnel et/ou répétitif","Eclairage inadapté au travail à effectuer","Exposition aux courants d’air","Siège des engins dégradés ou n'ayant pas été contrôlé depuis plus de 4 ans.","Autres risques","Salariés non formés à l'utilisation des produits.","Mode de fonctionnement dégradé","Absence d’EPI ou non portés","Manutention dans un environnement particulier (froid, chaud,…)","Absence de protocole de sécurité pour les opérations de chargement et de déchargement.","Travail sur écran en continu (absence d'alternance des tâches)","Absence de plan de circulation au sein de l’entreprise",null,"violences physiques ou verbales d’origine externe ","Autres risques","utilisation de dispositifs mobiles (escabeau, échaffaudage…)","utilisation d'une machine et/ou outil de façon répétitive et à cadence élevée","personne intervenant sur des installations électriques non habilitée",null,null,null,null,"Instabilité de la charge"]
[null,"E.P.I non fournis ","Présence de luminaires défectueux","Exposition à l’humidité","Autres risques",null,"Absence d’EPI (gants, lunettes, masques, …)","autres","Dysfonctionnement ou absence de la VMC","Postures pénibles (dos courbé, charge éloignée du corps…)*","Mauvais état des véhicules (freins, pneumatiques, feux de signalisation…)","Espace insuffisant (bureau trop petit, dégagement à l'arrière du poste de travail …)","Contraintes de communication durant les déplacements ",null,"absence de protocole de gestion des incidents liés à la malveillance ",null,"utilisation de moyens de fortune (chaise, empilement d'objets divers…)","Autres risques","vérification électrique périodique non faite ",null,null,null,null,"Autres risques"]
[null,"Autres risques","Autres risques","Exposition aux intempéries",null,null,"L'inventaire des produits utilisés n'est pas réalisé ",null,"Salariés en contacts avec des déchets, des eaux usées (personnel de ménage, ramassage des déchets, stations d’épuration, …)","Absence d'aide à la manutention","Contraintes imposées (délai, trajet…) empêchant le respect des règles de sécurité","Autres risques","véhicule non équipé pour les intempéries (neige, verglas …)",null,"Autres risques",null,"montée ou descente répétée d'un escalier ou sur un engin de circulation",null,"Autres risques"]
[null,null,null,"E.P.I non fournis ",null,null,"L'inventaire des produits utilisés n'est pas actualisé",null,"Les salariés n'ont pas la possibilité de se laver les mains","Absence de formation","Salariés non formés (caces…)",null,"déplacement non organisé ( manque GPS, méconnaissance des conditions climatiques …)",null,null,null,"Autres risques"]
[null,null,null,"Système de chauffage defectueux",null,null,"Les fiches de données de sécurité ne sont pas disponible",null,"Le suivi des vaccinations appropriés n'est pas mis en place","Autres risques","Vitesse de circulation des engins non reglementés",null,"Autres risques"]
[null,null,null,null,null,null,"Les contenants ne sont pas tous étiquetés",null,"La collecte des déchets industriels n'est pas prise en compte et n'est pas organisée ",null,"Autres risques"]
[null,null,null,null,null,null,"Les locaux et les zones de stockage ne sont pas ventilés",null,"Autres risques"]
[null,null,null,null,null,null,"Le tri des déchets n'est pas pris en compte.",null,"COVID-19"]
[null,null,null,null,null,null,"Autres risques"]

{"sheet":"Paramètres 2","index":10,"n_rows":7,"n_cols":3,"rows_kept":7,"cut":false,"hidden":false,"merged":[]}
["Délai d'exécution","Fréquence","Gravité"]
[]
["< 1 mois",1,1]
["1 mois – 3 mois",2,2]
["3 mois – 6 mois",3,3]
["6 mois – 12 mois",4,4]
["> 12 mois"]

{"sheet":"Paramètres 3","index":11,"n_rows":25,"n_cols":2,"rows_kept":25,"cut":false,"hidden":false,"merged":[]}
[{"$f":"'Paramètres 1'!$B$1","v":"Risque lié au bruit*"},"http://www.inrs.fr/media.html?refINRS=ED%206035"]
[{"$f":"'Paramètres 1'!$C$1","v":"Risque lié à l'éclairage"},"http://www.inrs.fr/media.html?refINRS=ED%2085"]
[{"$f":"'Paramètres 1'!$D$1","v":"Risques thermiques*"},"http://www.inrs.fr/risques/environnements-specifiques-de-travail/ce-qu-il-faut-retenir.html"]
[{"$f":"'Paramètres 1'!$E$1","v":"Risques vibrations*"},"http://www.inrs.fr/media.html?refINRS=ED%206018"]
[{"$f":"'Paramètres 1'!$F$1","v":"Risques rayonnements"},"http://www.inrs.fr/media.html?refINRS=ED%20958"]
[{"$f":"'Paramètres 1'!$G$1","v":"Risques chimiques*"},"http://www.inrs.fr/media.html?refINRS=ED%206150"]
[{"$f":"'Paramètres 1'!$H$1","v":"Risques liés au Covid-19"},"http://www.inrs.fr/actualites/COVID-19-et-entreprises.html"]
[{"$f":"'Paramètres 1'!$I$1","v":"Risques biologiques"},"http://www.inrs.fr/media.html?refINRS=ED%206034"]
[{"$f":"'Paramètres 1'!$J$1","v":"Risques liés à la manutention manuelle *"},"http://www.inrs.fr/media.html?refINRS=ED%206161"]
[{"$f":"'Paramètres 1'!$K$1","v":"Risques liés aux circulations et aux déplacements dans l’entreprise"},"http://www.inrs.fr/media.html?refINRS=ED%20975"]
[{"$f":"'Paramètres 1'!$L$1","v":"Risques liés au travail sur écran"},"http://www.inrs.fr/media.html?refINRS=ED%20924"]
[{"$f":"'Paramètres 1'!$M$1","v":"Risques liés à la circulation routière"},"http://www.inrs.fr/risques/routiers/ce-qu-il-faut-retenir.html"]
[{"$f":"'Paramètres 1'!$N$1","v":"Risques psychosociaux"},"http://www.inrs.fr/media.html?refINRS=ED%206140"]
[{"$f":"'Paramètres 1'!$O$1","v":"Risques liés à la malveillance"},"http://www.inrs.fr/risques/agressions-violences-externes/consequences-salaries-entreprise.html"]
[{"$f":"'Paramètres 1'!$P$1","v":"Risques de chute de plain pied"},"http://www.inrs.fr/media.html?refINRS=ED%20140"]
[{"$f":"'Paramètres 1'!$Q$1","v":"Risques liés aux chutes de hauteur"},"http://www.inrs.fr/media.html?refINRS=ED%206110"]
[{"$f":"'Paramètres 1'!$R$1","v":"Risques liés aux machines et aux outils"},"http://www.inrs.fr/demarche/conception-utilisation-equipements-travail/demarche-prevention.html"]
[{"$f":"'Paramètres 1'!$S$1","v":"Risques liés à l’électricité"},"http://www.inrs.fr/media.html?refINRS=ED%206187"]
[{"$f":"'Paramètres 1'!$T$1","v":"Risques d’incendie ou d’explosion"},"http://www.inrs.fr/risques/incendie-lieu-travail/evacuation-intervention-consignes-securite.html"]
[{"$f":"'Paramètres 1'!$U$1","v":"Risques liés aux interventions d’entreprises extérieures"},"http://www.inrs.fr/media.html?refINRS=ED%20941"]
[{"$f":"'Paramètres 1'!$V$1","v":"Risques liés à l’emploi d’intérimaires / stagiaires"},"http://www.inrs.fr/demarche/salaries-interimaires/ce-qu-il-faut-retenir.html"]
[{"$f":"'Paramètres 1'!$W$1","v":"Risques liés au travail sur des sites extérieurs"}]
[{"$f":"'Paramètres 1'!$X$1","v":"Risques liés à la manutention mécanique"},"http://www.inrs.fr/risques/mecaniques/exposition-au-risque.html"]
[{"$f":"'Paramètres 1'!$Y$1","v":"Risques liés aux addictions"},"http://www.inrs.fr/risques/addictions/reglementation.html"]
["Risques liés au travail hyperbare"]

{"sheet":"Paramètres RPS","index":12,"n_rows":11,"n_cols":10,"rows_kept":11,"cut":false,"hidden":false,"merged":[]}
[null,"Risques liés à l'intensité et à la complexicité du travail","Risques liès aux horaires de travail difficiles","Risques liés aux exigences émotionnelles","Risques liés à une faible autonomie du travail et à l'utilisation des compétence","Risques liés aux rapports sociaux degradés","Risques liés aux conflits de valeur","Risques liés à l'insécurité de l'emploi et du travail","Risques liées à l'organisation du travail ","Risques liés à la malveillance"]
[]
[null,"Contraintes de rythmes élevés","Travail plus de 45 heures par semaine","Situations de tension avec le public","Manque d’autonomie dans la tâche (Pas de choix dans la façon de travailler, pas de possibilité de prendre des initiatives ou pas de possibilité d'action pour organiser et réaliser son travail (choix des techniques, des outils, des mouvements et des gestes) )","Mauvaise qualité des relations entre collègues","Faire un travail en désaccord avec ses valeurs professionnelle","Insécurité socio-économique","Salariés à des postes isolés","Salariés en contact avec le public "]
[null,"Imprécision des objectifs","Travail en horaires atypiques","Confrontation à la souffrance d'autrui","Manque d’autonomie temporelle  (Difficulté ou impossibilité de prendre des temps de pause ou de choisir à quel moment les prendre ou d’organiser son planning selon les priorités et/ou urgences )","Le manque de soutien de la hiérarchie, de l'encadrement ","Travail inutile","Changements incessants ou incompréhensibles, non maîtrisés de la tâche et des conditions de travail ","Absence entretiens individuels ","L’établissement contient  des valeurs  "]
[null,"Inadéquation des objectifs de travail avec les moyens et les responsabilités (manque de ressoureces ou de formation)","Sollicitations en dehors des horaires de travail","Maîtrise des émotions ( Nécessité de maîtriser ses émotions en toutes circonstances, faire bonne figure ) ","Faible utilisation des compétences  (Difficulté ou impossibilité d'utiliser ou de développer ses compétences professionnelles, connaissances, savoir-faire) ","Violence interne au travail","Manque de moyens (technique et/ou organisationnel) pour faire un traviail que les salariés estiment de qualité. ","Incertitude de l'avenir de son métier, peur de devoir changer de qualification ou de métier sans y être préparé ... ","impossibilité de prendre le temps de pause réglementaire","Protection mécanique absente ou en dysfonctionnement (rideaux de fer, grille …)"]
[null,"Mauvaise gestion de la polyvalence (Changement de tâche, de poste ou de fonction à l'improviste )","Horaires imprévisibles : changement de planning non anticipés ","actes de violence vécus","Salariés ne bénéficient pas d’un plan de formation ","Manque de reconnaissance (Rémunération, statut, perspectives de carrière proposées )\n","Autres risques","Absence d'échange, de communicatoin sur les évolutions de l'entreprise, de l'activité, …","Système de rémunération indépendant du salaire ","Moyens de détection absent ou en dysfonctionnement (alarmes, …) "]
[null,"Incompatibilité des instructions entre elles (Ordres ou consignes contradictoires )","Contraintes professionnelles qui ne permettent pas de remplir les obligations de la vie personnelle ","Autres risques","Formation de base insuffisante pour la compréhension des instructions données…","Changement fréquent de personnel ",null,"Autres risques","Autres risques","violences physiques ou verbales d’origine externe "]
[null,"Interruption dans le travail (Tâches imprévues , Attention soutenue et vigilance permanente)","Plannings non connus à l’avance",null,"Défaut de formation suite à un changement d'outils, de technique, de logiciel. ","Relations tendues, conflits entre collègues, concurrence entre services, diminution des collaborations ",null,null,null,"absence de protocole de gestion des incidents liés à la malveillance "]
[null,"Multiplicité des lieux de travail ","Travail de nuit ( entre 21h et 6h)*",null,"Impossibilité des travailleur à agir sur leur situation de travail : méthode, outils, logiciel. ","Autres risques",null,null,null,"Autres risques"]
[null,"impossibilité de prendre le temps de pause réglementaire","Autres risques",null,"absence de diversité sur son poste de travail",null,null,null,null,"Aucune personne formée pour porter secours à un blessé"]
[null,"Autres risques",null,null,"Autres risques",null,null,null,null,"Autres risques"]

{"sheet":"Paramètres COVID-19","index":13,"n_rows":19,"n_cols":8,"rows_kept":19,"cut":false,"hidden":false,"merged":[]}
[null,null,null,null,null,null,null,"Mesures organisationnelles/collectives/individuelles"]
[null,null,null,null,null,null,null,"Numéro vert affiché 0800 130 000"]
[null,null,null,null,null,null,null,"Télétravail pour tous les postes qui le permettent"]
[null,null,null,null,null,null,null,"Pour les postes non éligibles au télétravail, les régles de distanciation sont mises en place :\n- Organiser le maintien de l'activité en limitant le nombre de personnes présentes simultanément sur le lieu de travail\n- Eviter les réunions\n- Privilégier les bureaux individuels\n- Favoriser la communication par courrier électronique, téléphone, audioconférence ou visioconférence"]
[null,null,null,null,null,null,null,"Etablir des procédures pour l'accès des visiteurs et des clients :\n - limiter le nombre de visiteurs ou clients et organiser les files d'attente,\n- afficher les consignes générales d'hygiène,\n- mettre à disposition des solutions hydroalcooliques à l'entrée,\n- mettre en place une distance de sécurité, voire des dispositifs spécifiques (interphone écrans)"]
[null,null,null,null,null,null,null,"Enlever les revues et les documents\n des aires d'attente ou des salles communes"]
[null,null,null,null,null,null,null,"Limiter l'accès aux espaces de convivialité et autres lieux de pauses collectives"]
[null,null,null,null,null,null,null,"Veiller à l'approvisionnement des postes de lavage des mains\n en savon et en papier à usage unique,"]
[null,null,null,null,null,null,null,"Veille permamente afin de réévaluer les risques\n en fonction de l'évolution de l'épidémie (stade1,2,3)"]
[null,null,null,null,null,null,null,"Mettre en œuvre un Plan de Continuité d'Activité (PCA)"]
[null,null,null,null,null,null,null,"Nettoyer régulièrement les surfaces et les lieux collectifs"]
[null,null,null,null,null,null,null,"Rédaction de \"Consignes pandémies\" annexés au DU"]
[null,null,null,null,null,null,null,"Diffusion des consignes à l'ensemble du personnel\n et des prestataires extérieurs"]
[null,null,null,null,null,null,null,"Désignation des remplaçants\n et prévoir la formalisation des transferts\n de pouvoirs et compétences"]
[null,null,null,null,null,null,null,"Mesures individuelles"]
[null,null,null,null,null,null,null,"Gestes barrières"]
[null,null,null,null,null,null,null,"Tousser ou éternuer dans son coude \net utiliser un mouchoir à usage unique et le jeter dans une poubelle fermée"]
[null,null,null,null,null,null,null,"Éviter les contacts physiques\n (distance minimum 1 mètre)"]
[null,null,null,null,null,null,null,"Dans la mesure du possible,\n fournir des masques au personnel ainsi que des gants à usage unique jetables, si l'activité le nécessite,"]